{"text_format":"1","workbook":"xlsx","n_sheets":2,"sheets":["Spreadsheets","PlotDat2"],"not_rendered":{"charts":0,"images":0,"macros":1,"external_links":0,"defined_names":3,"comments":0,"pivot_tables":0},"unopened":[],"bounds":{"document_bytes":16777216,"sheet_cells":100000,"rows_first":2000,"rows_last":500,"rows_between":2000,"halvings":0,"cell_chars":16384,"cell_head_chars":4096},"cells_cut":0,"cells_raw":0,"read":"whole","date_system":"1900"}

{"sheet":"Spreadsheets","index":0,"n_rows":706,"n_cols":20,"rows_kept":706,"cut":false,"hidden":false,"merged":[]}
["Number","Magazine Reference","Microsoft Excel Hyperlink","Number","Negative","Earth","Galaxy","Universe","K","Ar","Re","Pb","Th","U-235","U-238","Sm","Rb","Lu","Total"]
[1,"Chemical Geology 236, 2007,  Pages 323-338","Future.xlsm",1,4,1,null,null,null,null,5,null,null,null,null,null,null,null,{"$f":"SUM(I2:R2)","v":5},{"$f":"(\"www.creationismonline.com/YEC/\" & C2)","v":"www.creationismonline.com/YEC/Future.xlsm"}]
[2,"Geochimica et Cosmochimica Acta, 2002, Volume 66, Number 6, Pages 1037-1050","Future.xlsm",2,15,1,null,null,null,null,16,null,null,null,null,null,null,null,{"$f":"SUM(I3:R3)","v":16},{"$f":"(\"www.creationismonline.com/YEC/\" & C3)","v":"www.creationismonline.com/YEC/Future.xlsm"}]
[3,"Chemical Geology, Volume 130, 1996, Pages 55-64","Impossible.xlsm",3,null,1,null,null,null,null,1,null,null,null,null,null,null,null,1,"www.creationismonline.com/YEC/Impossible.xlsm"]
[4,"Lithos, Volume 125, 2011, Pages 405-422","Impossible.xlsm",4,13,1,1,1,null,null,13,null,null,null,null,null,null,null,13,"www.creationismonline.com/YEC/Impossible.xlsm"]
[5,"International Journal Earth Science, 2012, Volume 101, Pages 1091-1109","Impossible.xlsm",5,6,1,1,1,null,null,null,null,null,null,null,4,null,3,7,"www.creationismonline.com/YEC/Impossible.xlsm"]
[6,"Earth And Planetary Science Letters 7 (1969) 141-147","Research.xlsm",6,null,1,8,4,null,null,null,null,null,null,10,null,null,null,10,"www.creationismonline.com/YEC/Research.xlsm"]
[7,"Journal Of Petrology, 2009, Volume 50, Number 10, Pages 1857-1898","Neodymium_Samarium.xlsm",7,39,1,null,1,null,null,15,null,null,null,null,6,null,24,45,"www.creationismonline.com/YEC/Neodymium_Samarium.xlsm"]
[8,"Earth and Planetary Science Letters, Volume 99, 1990, Pages 230-249","Rubidium_Strontium_01.xlsm",8,1,1,null,null,null,null,null,null,null,null,null,null,3,null,3,"www.creationismonline.com/YEC/Rubidium_Strontium_01.xlsm"]
[9,"Earth and Planetary Science Letters, Volume 17, 1973, Pages 324-337","Rubidium_Strontium_01.xlsm",9,4,1,1,1,null,null,null,null,null,null,null,null,6,null,6,"www.creationismonline.com/YEC/Rubidium_Strontium_01.xlsm"]
[10,"Earth and Planetary Science Letters, Volume 80, 1986, Pages 281-298","Rubidium_Strontium_01.xlsm",10,2,1,1,1,null,null,null,null,null,null,null,null,3,null,3,"www.creationismonline.com/YEC/Rubidium_Strontium_01.xlsm"]
[11,"Earth and Planetary Science Letters, Volume 134, 1995, Pages 23-36","Rubidium_Strontium_01.xlsm",11,7,1,1,1,null,null,null,null,null,null,null,null,8,null,8,"www.creationismonline.com/YEC/Rubidium_Strontium_01.xlsm"]
[12,"Journal Of Petrology, 2009, Volume 50, Number 10, Pages 1857-1898","Rubidium_Strontium_01.xlsm",12,39,1,null,1,null,null,15,null,null,null,null,6,null,24,45,"www.creationismonline.com/YEC/Rubidium_Strontium_01.xlsm"]
[13,"Meteoritics And Planetary Science, 1998, Volume 33, pages 31-48","Good.xlsm",13,null,1,null,null,null,1,null,null,null,null,null,null,null,null,1,"www.creationismonline.com/YEC/Good.xlsm"]
[14,"Geochimica et Cosmochimica Acta 74 (2010) 3292-3306","Good.xlsm",14,4,1,null,null,null,null,5,null,null,null,null,null,null,null,5,"www.creationismonline.com/YEC/Good.xlsm"]
[15,"Earth and Planetary Science Letters, 1974, Volume 22, Pages 256 - 266","Dating_Methods.xlsm",15,null,1,1,1,null,1,null,null,null,null,null,null,null,null,1,"www.creationismonline.com/YEC/Dating_Methods.xlsm"]
[16,"Nature, 1986, Volume 323, Page 710, 711","Dating_Methods.xlsm",16,null,1,null,null,null,1,null,null,null,null,null,null,null,null,1,"www.creationismonline.com/YEC/Dating_Methods.xlsm"]
[17,"Nature, 1989, Volume 337, Page 226 - 229","Dating_Methods.xlsm",17,null,1,null,null,null,1,null,null,null,null,null,null,null,null,1,"www.creationismonline.com/YEC/Dating_Methods.xlsm"]
[18,"Geochemica Et Cosmochemica Acta, 1979, Volume 43, Pages 1829 - 1840","Dating_Methods.xlsm",18,null,1,null,null,null,1,null,null,null,null,null,null,null,null,1,"www.creationismonline.com/YEC/Dating_Methods.xlsm"]
[19,"Lithos, Volume 126, 2011, Pages 233-247","Impossible.xlsm",19,16,2,1,1,null,null,13,null,null,null,null,1,null,5,19,"www.creationismonline.com/YEC/Impossible.xlsm"]
[20,"Lithos, Volume 112-S, 2009, Pages 1120-1132","Impossible.xlsm",20,null,2,null,null,null,null,2,null,null,null,null,null,null,null,2,"www.creationismonline.com/YEC/Impossible.xlsm"]
[21,"Chinese Journal Of Geochemistry, Volume 16, Number 1, 1997, Pages 80-85","Excellent.xlsm",21,null,2,null,null,null,null,null,14,null,null,null,null,null,null,14,"www.creationismonline.com/YEC/Excellent.xlsm"]
[22,"Earth and Planetary Science Letters, Volume 64, 1983, Pages 356-373","Rubidium_Strontium_01.xlsm",22,1,2,null,null,null,null,null,null,null,null,null,null,3,null,3,"www.creationismonline.com/YEC/Rubidium_Strontium_01.xlsm"]
[23,"Geochimica et Cosmochimica Acta 74 (2010) Pages 5368-5381","Good.xlsm",23,null,2,null,null,null,null,2,null,null,null,null,null,null,null,2,"www.creationismonline.com/YEC/Good.xlsm"]
[24,"Economic Geology, 1978, Volume 73, Pages 29 - 49","Dating_Methods.xlsm",24,null,2,1,null,null,null,null,null,null,null,null,null,null,null,0,"www.creationismonline.com/YEC/Dating_Methods.xlsm"]
[25,"Earth and Planetary Science Letters, 1973, Volume 20, Pages 157 - 170","Dating_Methods.xlsm",25,null,2,null,null,null,null,null,null,null,null,null,null,null,null,0,"www.creationismonline.com/YEC/Dating_Methods.xlsm"]
[26,"Geochemica Et Cosmochemica Acta, 2000, Volume 64, Number 17, Pages 2913 - 2928","Dating_Methods.xlsm",26,null,2,null,null,null,null,null,null,null,null,null,null,null,null,0,"www.creationismonline.com/YEC/Dating_Methods.xlsm"]
[27,"Icarus, 1980, Volume 42, pages 380 - 405","Dating_Methods.xlsm",27,null,2,null,null,null,null,null,null,null,null,null,null,null,null,0,"www.creationismonline.com/YEC/Dating_Methods.xlsm"]
[28,"Geochemica Et Cosmochemica Acta, 1990, Volume 54, pages 3509 - 3523","Dating_Methods.xlsm",28,null,2,null,null,null,null,null,null,null,null,null,null,null,null,0,"www.creationismonline.com/YEC/Dating_Methods.xlsm"]
[29,"Geochimica et Cosmochimica Acta, 1993, Volume 57, Page 1626","Dating_Methods.xlsm",29,null,2,null,null,null,null,null,2,null,null,null,null,null,null,2,"www.creationismonline.com/YEC/Dating_Methods.xlsm"]
[30,"Earth and Planetary Science Letters, 1982, Volume 61, Page 293","Dating_Methods.xlsm",30,null,2,null,null,null,null,null,2,null,null,null,null,null,null,2,"www.creationismonline.com/YEC/Dating_Methods.xlsm"]
[31,"Geochimica et Cosmochimica Acta, 1995, Volume 59, Number 5, Page 970","Dating_Methods.xlsm",31,24,2,1,null,null,null,27,null,null,null,null,null,null,null,27,"www.creationismonline.com/YEC/Dating_Methods.xlsm"]
[32,"Earth And Planetary Science Letters, 1994, Volume 126, Page 460","Dating_Methods.xlsm",32,null,2,1,1,null,null,null,4,18,null,null,null,null,null,22,"www.creationismonline.com/YEC/Dating_Methods.xlsm"]
[33,"Chemical Geology 208, 2004,  Pages 141- 156","Future.xlsm",33,3,3,null,null,null,null,6,null,null,null,null,null,null,null,6,"www.creationismonline.com/YEC/Future.xlsm"]
[34,"Geochemica et Cosmochimica Acta, 1995, Volume 59, Number 5, Pages 959-977","Impossible.xlsm",34,null,3,1,1,null,null,null,null,null,null,null,null,3,null,3,"www.creationismonline.com/YEC/Impossible.xlsm"]
[35,"Gondwana Research 14 (2008) Page 644-662","Excellent.xlsm",35,null,3,null,null,null,null,null,44,null,null,null,null,null,null,44,"www.creationismonline.com/YEC/Excellent.xlsm"]
[36,"Earth and Planetary Science Letters 183 (2000) 93-106","Research.xlsm",36,null,3,null,null,null,null,null,3,null,null,null,null,null,null,3,"www.creationismonline.com/YEC/Research.xlsm"]
[37,"Geochimica et Cosmochimica Acta, Volume 73, 2009, Pages 3963-3980","Rubidium_Strontium_01.xlsm",37,null,3,2,1,null,null,null,null,null,null,null,null,3,null,3,"www.creationismonline.com/YEC/Rubidium_Strontium_01.xlsm"]
[38,"Journal Of Petrology, 1997, Volume 38, Number 11, Pages 1489-1512","Rubidium_Strontium_01.xlsm",38,null,3,null,null,null,null,null,null,null,null,null,null,3,null,3,"www.creationismonline.com/YEC/Rubidium_Strontium_01.xlsm"]
[39,"Geochimica et Cosmochimica Acta, 2009, Volume 73, Pages 3963-3980","Rubidium_Strontium_02.xlsm",39,null,3,3,2,null,null,null,null,null,null,null,null,3,null,3,"www.creationismonline.com/YEC/Rubidium_Strontium_02.xlsm"]
[40,"Meteoritics & Planetarv Science, 2002,  Volume 37, Pages 371- 394","Good.xlsm",40,null,3,null,null,null,3,null,null,null,null,null,null,null,null,3,"www.creationismonline.com/YEC/Good.xlsm"]
[41,"Meteoritics And Planetary Science, 2001, Volume 36, Pages 107 - 122","Dating_Methods.xlsm",41,null,3,null,null,null,3,null,null,null," ",null,null,null,null,3,"www.creationismonline.com/YEC/Dating_Methods.xlsm"]
[42,"Geochemica Et Cosmochemica Acta, 2010, Volume 74, pages 1734 - 1747","Dating_Methods.xlsm",42,null,3,1,null,null,null,4,null,null,null,null,null,null,null,4,"www.creationismonline.com/YEC/Dating_Methods.xlsm"]
[43,"Lithos, Volume  126, 2011,  Pages 233-247","Future.xlsm",43,17,4,1,1,null,null,15,null,null,null,null,1,null,5,21,"www.creationismonline.com/YEC/Future.xlsm"]
[44,"Journal Of Petrology, 2007, Volume 48, Number 3, Pages 589-625","Impossible.xlsm",44,27,4,3,3,null,null,4,null,null,null,null,23,null,6,33,"www.creationismonline.com/YEC/Impossible.xlsm"]
[45,"Earth and Planetary Science Letters, 1995, Volume 134, Pages 341-357","Impossible.xlsm",45,null,4,2,1,null,null,4,null,null,null,null,null,null,null,4,"www.creationismonline.com/YEC/Impossible.xlsm"]
[46,"Economic Geology, 2002, Volume 97, Pages 23 - 42","Dating_Methods.xlsm",46,null,4,1,1,null,null,null,null,null,null,null,null,4,null,4,"www.creationismonline.com/YEC/Dating_Methods.xlsm"]
[47,"Economic Geology, 1979, Volume 74, Pages 1654 - 1668","Dating_Methods.xlsm",47,null,4,1,null,null,null,null,null,null,null,4,null,null,null,4,"www.creationismonline.com/YEC/Dating_Methods.xlsm"]
[48,"Meteoritics And Planetary Science, 1998, Volume 33, Pages 641 - 453","Dating_Methods.xlsm",48,null,4,1,1,null,null,null,13,null,null,null,null,null,null,13,"www.creationismonline.com/YEC/Dating_Methods.xlsm"]
[49,"Earth And Planetary Science Letters, 1995, Volume 134, Page 344","Dating_Methods.xlsm",49,null,4,3,1,null,null,null,4,null,null,null,null,null,null,4,"www.creationismonline.com/YEC/Dating_Methods.xlsm"]
[50,"Earth and Planetary Science Letters, 1995, Volume 134, Pages 341-357","Dating_Methods.xlsm",50,null,4,3,1,null,null,null,null,null,null,null,null,null,null,0,"www.creationismonline.com/YEC/Dating_Methods.xlsm"]
[51,"Geochemica Et Cosmochemica Acta, 1997, Volume 61, Number 16, pp. 3477 - 3501","Dating_Methods.xlsm",51,null,4,2,null,null,null,4,null,null,null,null,null,null,null,4,"www.creationismonline.com/YEC/Dating_Methods.xlsm"]
[52,"Geochemica et Cosmochimica Acta, 1995, Volume 59, Number 5, Pages 959-977","Negative.xlsm",52,17,5,1,null,null,null,13,null,null,null,null,4,8,null,25,"www.creationismonline.com/YEC/Negative.xlsm"]
[53,"Gondwana Research 11 (2007) Page 69-91","Excellent.xlsm",53,null,5,null,null,null,null,null,47,null,null,null,null,null,null,47,"www.creationismonline.com/YEC/Excellent.xlsm"]
[54,"Gondwana Research 11 (2007) Page 382-395","Excellent.xlsm",54,null,5,null,null,null,null,null,8,null,null,null,null,null,null,8,"www.creationismonline.com/YEC/Excellent.xlsm"]
[55,"Journal of Petrology, 2011, Volume 52, Number 2, Pages 401-430","Excellent.xlsm",55,null,5,null,null,null,null,null,15,null,null,null,null,null,null,15,"www.creationismonline.com/YEC/Excellent.xlsm"]
[56,"Geochimica et Cosmochimica Acta, 1956, Volume 10, Pages 230 to 237","Excellent.xlsm",56,null,5,null,null,null,null,null,20,null,null,null,null,null,null,20,"www.creationismonline.com/YEC/Excellent.xlsm"]
[57,"Lithos, 2003, Volume 71, Pages 323- 336","Good.xlsm",57,1,5,2,2,null,null,8,null,null,null,null,null,null,null,8,"www.creationismonline.com/YEC/Good.xlsm"]
[58,"www.nature.com/ngeo/journal/v5/n4/extref/ngeo1432-s2.xls","Very_Old_Z.xls",58,null,5,null,null,null,null,null,5,null,null,null,null,null,null,5,"www.creationismonline.com/YEC/Very_Old_Z.xls"]
[59,"Economic Geology, 2011, Volume 106, pages 835–867","Th-Pb.xlsm",59,null,6,3,2,null,null,null,null,6,null,null,null,null,null,6,"www.creationismonline.com/YEC/Th-Pb.xlsm"]
[60,"Contributions Mineral Petrology (1984) 85, Pages 376-390","Excellent.xlsm",60,null,6,null,null,null,null,null,6,null,null,null,null,null,null,6,"www.creationismonline.com/YEC/Excellent.xlsm"]
[61,"Mineralium Deposita (1999) 34, Pages 273-283","Excellent.xlsm",61,null,6,null,null,null,null,null,2,null,null,null,null,null,null,2,"www.creationismonline.com/YEC/Excellent.xlsm"]
[62,"Chemical Geology, 66 (1987) Pages 193-208","Excellent.xlsm",62,null,6,null,null,null,null,null,41,null,null,null,null,null,null,41,"www.creationismonline.com/YEC/Excellent.xlsm"]
[63,"Geochemistry And Geophysics Geosystems, 2006, Volume 7, Number 8, Pages 1-29","Excellent.xlsm",63,null,6,null,null,null,null,null,22,null,null,null,null,null,null,22,"www.creationismonline.com/YEC/Excellent.xlsm"]
[64,"Geochemica Et Cosmochemica Acta, 1980, Volume 44, pages 1667 - 1682","Dating_Methods.xlsm",64,null,6,null,null,null,6,null,null,null,null,null,null,null,null,6,"www.creationismonline.com/YEC/Dating_Methods.xlsm"]
[65,"Gondwana Research, 2005, Volume 8, Number 4, Pages 617-621","Dating_Methods.xlsm",65,null,6,4,2,null,null,6,null,null,null,null,null,null,null,6,"www.creationismonline.com/YEC/Dating_Methods.xlsm"]
[66,"Earth and Planetary Science Letters, 2003, Volume 209, pages 323 - 336","Dating_Methods.xlsm",66,null,6,null,null,null,null,null,null,6,null,null,null,null,null,{"$f":"SUM(I67:R67)","v":6},{"$f":"(\"www.creationismonline.com/YEC/\" & C67)","v":"www.creationismonline.com/YEC/Dating_Methods.xlsm"}]
[67,"Earth And Planetary Science Letters, 1999, Volume 172, Page 207","Dating_Methods.xlsm",67,null,6,null,null,null,null,null,null,null,null,null,null,null,null,0,"www.creationismonline.com/YEC/Dating_Methods.xlsm"]
[68,"Earth and Planetary Science Letters, 2002, Volume 203, Pages 651-663","Impossible.xlsm",68,25,7,2,2,null,null,33,null,null,null,null,null,null,null,33,"www.creationismonline.com/YEC/Impossible.xlsm"]
[69,"Geochimica et Cosmochimica Acta, 1989,  Volume 53, Pages 1583-1595","Impossible.xlsm",69,4,7,1,null,null,null,9,5,null,null,null,null,null,null,14,"www.creationismonline.com/YEC/Impossible.xlsm"]
[70,"Earth and Planetary Science Letters, 2011, Volume 302, Pages 154-162","Excellent.xlsm",70,null,7,null,null,null,null,null,66,null,null,null,null,null,null,66,"www.creationismonline.com/YEC/Excellent.xlsm"]
[71,"Geochimica et Cosmochimica Acta, 2005, Volume 69, Number 5, Pages 1253-1264","Good.xlsm",71,null,7,null,null,null,7,null,null,null,null,null,null,null,null,7,"www.creationismonline.com/YEC/Good.xlsm"]
[72,"Meteoritics & Planetary Science, 2002, Volume 37, Pages 1797-1813","Good.xlsm",72,null,7,null,null,null,7,null,null,null,null,null,null,null,null,7,"www.creationismonline.com/YEC/Good.xlsm"]
[73,"Precambrian Research, 2002, Volume 117, Pages 119 - 143","Plot_Index.xlsm",73,null,7,null,null,null,null,null,7,null,null,null,null,null,null,7,"www.creationismonline.com/YEC/Plot_Index.xlsm"]
[74,"http://petrology.oxfordjournals.org/content/suppl/1999/12/17/40.6.873.DC1/morriso.xls","Very_Old_X.xls",74,null,7,null,null,null,null,null,7,null,null,null,null,null,null,7,"www.creationismonline.com/YEC/Very_Old_X.xls"]
[75,"Chemical Geology 276, 2010,  Pages 166-187","Future.xlsm",75,4,8,null,null,null,null,12,null,null,null,null,null,null,null,12,"www.creationismonline.com/YEC/Future.xlsm"]
[76,"Earth And Planetary Science Letters, Volume 123, 1994, Pages 139-154","GOOD.xlsm",76,null,8,null,null,null,null,null,8,null,null,null,null,null,null,8,"www.creationismonline.com/YEC/GOOD.xlsm"]
[77,"Geochimica et Cosmochimica Acta, 2008, Volume 72, Pages 5722-5756","Impossible.xlsm",77,10,8,4,4,null,null,18,null,null,null,null,null,null,null,18,"www.creationismonline.com/YEC/Impossible.xlsm"]
[78,"Chemical Geology, 1985, Volume 52, Pages 249-271","Impossible.xlsm",78,4,8,4,4,null,null,null,null,null,null,null,null,12,null,12,"www.creationismonline.com/YEC/Impossible.xlsm"]
[79,"Geochimica et Cosmochimica Acta, 1983 Vol. 47. Pages 2217 to 2224","Good.xlsm",79,null,8,null,null,8,null,null,null,null,null,null,null,null,null,8,"www.creationismonline.com/YEC/Good.xlsm"]
[80,"Meteoritics & Planetary Science, 2003, Volume 38, Number 11, Pages 1697 - 1703","Plot_Index.xlsm",80,null,8,null,null,null,null,null,null,2,null,6,null,null,null,8,"www.creationismonline.com/YEC/Plot_Index.xlsm"]
[81,"Geochemica Et Cosmochemica Acta, 2005, Volume 69, Number 2, pages 505 - 518","Dating_Methods.xlsm",81,null,8,null,null,null,null,null,null,2,2,4,null,null,null,8,"www.creationismonline.com/YEC/Dating_Methods.xlsm"]
[82,"Geochimica et Cosmochimica Acta, 1989, Volume 53, Page 1591","Dating_Methods.xlsm",82,7,8,2,1,null,6,null,5,null,null,null,null,null,null,11,"www.creationismonline.com/YEC/Dating_Methods.xlsm"]
[83,"Science, 1967, Volume 155, Pages 999 - 1000","Dating_Methods.xlsm",83,null,8,2,null,8,null,null,null,null,null,null,null,null,null,8,"www.creationismonline.com/YEC/Dating_Methods.xlsm"]
[84,"Geochemica Et Cosmochemica Acta, 1970, Volume 34, pages 713 - 725","Dating_Methods.xlsm",84,null,8,4,4,null,8,null,null,null,null,null,null,null,null,8,"www.creationismonline.com/YEC/Dating_Methods.xlsm"]
[85,"Precambrian Research, Volume 118, 2002, Pages 267-283","Impossible.xlsm",85,null,9,2,2,null,null,9,null,null,null,null,null,null,null,9,"www.creationismonline.com/YEC/Impossible.xlsm"]
[86,"Earth and Planetary Science Letters, 59 (1982) Pages 327-342","Excellent.xlsm",86,null,9,null,null,null,null,null,16," ",null,null,null,null,null,16,"www.creationismonline.com/YEC/Excellent.xlsm"]
[87,"International Geology Review, Volume 45, 2003, Pages 780-797.","Excellent.xlsm",87,null,9,null,null,null,null,null,13,13,null,null,null,null,null,26,"www.creationismonline.com/YEC/Excellent.xlsm"]
[88,"Earth and Planetary Science Letters 165 (1999) 117-127","Research.xlsm",88,null,9,null,null,null,null,null,9,null,null,null,null,null,null,9,"www.creationismonline.com/YEC/Research.xlsm"]
[89,"Earth and Planetary Science Letters 267 (2008) 236-246","Research.xlsm",89,null,9,null,null,null,null,null,9,null,null,null,null,null,null,9,"www.creationismonline.com/YEC/Research.xlsm"]
[90,"Earth and Planetary Science Letters, Volume 59, 1982, Pages 327-342","Neodymium_Samarium.xlsm",90,null,9,null,null,null,null,null,9,null,null,null,null,null,null,9,"www.creationismonline.com/YEC/Neodymium_Samarium.xlsm"]
[91,"Earth and Planetary Science Letters, Volume 59, 1982, Pages 327-342","Rubidium_Strontium_01.xlsm",91,null,9,null,null,null,null,null,9,null,null,null,null,null,null,9,"www.creationismonline.com/YEC/Rubidium_Strontium_01.xlsm"]
[92,"Geochimica et Cosmochimica Acta, 2006, Volume 70, Pages 4950-4976","Rubidium_Strontium_02.xlsm",92,null,9,null,null,null,null,null,9,null,null,null,null,null,null,9,"www.creationismonline.com/YEC/Rubidium_Strontium_02.xlsm"]
[93,"Chemical Geology 255 (2008) 329-345","Rubidium_Strontium_02.xlsm",93,null,9,null,null,null,null,null,9,null,null,null,null,null,null,9,"www.creationismonline.com/YEC/Rubidium_Strontium_02.xlsm"]
[94,"Precambrian Research, 1988, Volume 38, Pages 147 - 164","Plot_Index.xlsm",94,null,9,null,null,null,null,null,9,null,null,null,null,null,null,9,"www.creationismonline.com/YEC/Plot_Index.xlsm"]
[95,"www.nature.com/ngeo/journal/v5/n4/extref/ngeo1432-s2.xls","Very_Old_A_5.xls",95,null,9,null,null,null,null,null,9,null,null,null,null,null,null,9,"www.creationismonline.com/YEC/Very_Old_A_5.xls"]
[96,"Geochemica Et Cosmochemica Acta, 2008, Volume 72, Pages 2067 - 2089","Dating_Methods.xlsm",96,null,9,5,5,null,null,null,null,4,null,5,null,null,null,9,"www.creationismonline.com/YEC/Dating_Methods.xlsm"]
[97,"Earth And Planetary Science Letters ,Volume 180, 2000, Pages 259-270","GOOD.xlsm",97,null,10,null,null,null,null,null,10,null,null,null,null,null,null,10,"www.creationismonline.com/YEC/GOOD.xlsm"]
[98,"Geochimica et Cosmochimica Acta, Vol. 62, No. 16, pp. 2823-2835, 1998","Lead_206_207.xlsm",98,null,10,null,null,null,null,null,20,null,null,1,null,null,null,21,"www.creationismonline.com/YEC/Lead_206_207.xlsm"]
[99,"Earth and Planetary Science Letters, Volume 86, 1987, Pages 327-340","Rubidium_Strontium_01.xlsm",99,2,10,10,10,null,null,null,null,null,null,null,null,12,null,12,"www.creationismonline.com/YEC/Rubidium_Strontium_01.xlsm"]
[100,"Journal Of Petrology, 2000, Volume 41, Number 6, Pages 759-788","Rubidium_Strontium_01.xlsm",100,null,10,5,5,null,null,null,5,null,null,5,null,null,null,10,"www.creationismonline.com/YEC/Rubidium_Strontium_01.xlsm"]
[101,"http://www.lpi.usra.edu/meetings/lpsc1980/pdf/1155.pdf","Good.xlsm",101,null,10,null,null,null,11,null,null,null,null,null,null,null,null,11,"www.creationismonline.com/YEC/Good.xlsm"]
[102,"http://www.lpi.usra.edu/meetings/lpsc1978/pdf/1289.pdf","Good.xlsm",102,null,10,null,null,null,null,null,2,2,null,2,4,4,null,14,"www.creationismonline.com/YEC/Good.xlsm"]
[103,"Precambrian Research, 17 (1982) 199--214","Good.xlsm",103,null,10,10,10,null,null,null,null,10,null,null,null,null,null,10,"www.creationismonline.com/YEC/Good.xlsm"]
[104,"Earth and Planetary Science Letters, 1983, Volume 62, Pages 132 - 146","Plot_Index.xlsm",104,null,10,null,null,null,null,null,13,null,null,null,null,null,null,13,"www.creationismonline.com/YEC/Plot_Index.xlsm"]
[105,"http://petrology.oxfordjournals.org/content/suppl/2011/05/11/egr022.DC1/Appendix_table_1.xls","Very_Old_F.xls",105,null,10,null,null,null,null,null,10,null,null,null,null,null,null,10,"www.creationismonline.com/YEC/Very_Old_F.xls"]
[106,"www.nyecounty.com/RID_data/rid4391.xls","Very_Old_L.xls",106,null,10,null,null,null,null,null,10,null,null,null,null,null,null,10,"www.creationismonline.com/YEC/Very_Old_L.xls"]
[107,"Earth and Planetary Science Letters, 1974, Volume 22, Pages 145 - 156","Dating_Methods.xlsm",107,null,10,null,null,null,12,null,null,null,null,null,null,null,null,12,"www.creationismonline.com/YEC/Dating_Methods.xlsm"]
[108,"Earth and Planetary Science Letters, 1968, Volume 4, pages 84 - 88","Dating_Methods.xlsm",108,null,10,null,null,null,10,null,null,null,null,null,null,null,null,10,"www.creationismonline.com/YEC/Dating_Methods.xlsm"]
[109,"Geochemica Et Cosmochemica Acta, 1988, Volume 52, Pages 2487 - 2499","Dating_Methods.xlsm",109,null,10,null,null,10,null,null,null,null,null,null,null,null,null,10,"www.creationismonline.com/YEC/Dating_Methods.xlsm"]
[110,"Lithos, Volume  142-143, 2012, Pages 161-181","Future.xlsm",110,13,11,3,3,null,null,null,null,null,null,null,13,15,22,50,"www.creationismonline.com/YEC/Future.xlsm"]
[111,"Chemical Geology, Volume 162, 2000, Pages 169-191","Future.xlsm",111,3,11,1,null,null,null,null,10,null,null,21,null,3,null,34,"www.creationismonline.com/YEC/Future.xlsm"]
[112,"Journal Of Petrology, Volume 51, Numbers 1 & 2, Pages 537-571, 2010 ","GOOD.xlsm",112,null,11,null,null,null,null,null,null,null,null,null,null,null,null,0,"www.creationismonline.com/YEC/GOOD.xlsm"]
[113,"Lithos, Volume 48, 1999, Pages 184","Impossible.xlsm",113,null,11,null,null,null,null,11,null,null,null,null,null,null,null,11,"www.creationismonline.com/YEC/Impossible.xlsm"]
[114,"Contribution Mineral Petrology, 2002, Volume 144, Pages 241-253","Th-Pb.xlsm",114,null,11,11,11,null,null,null,3,11,null,null,null,null,null,14,"www.creationismonline.com/YEC/Th-Pb.xlsm"]
[115,"Earth and Planetary Science Letters, Volume 37, 1977, Pages 1-12","Rubidium_Strontium_01.xlsm",115,3,11,3,3,null,null,null,2,9,3,9,null,5,null,28,"www.creationismonline.com/YEC/Rubidium_Strontium_01.xlsm"]
[116,"Earth and Planetary Science Letters, Volume 61, 1982, Pages 97- 111","Rubidium_Strontium_01.xlsm",116,null,11,null,null,null,null,null,11,null,null,null,null,null,null,11,"www.creationismonline.com/YEC/Rubidium_Strontium_01.xlsm"]
[117,"Earth and Planetary Science Letters, 1983, Volume 63, Pages 1 To 12","Good.xlsm",117,null,11,null,null,null,11,null,null,null,null,null,null,null,null,11,"www.creationismonline.com/YEC/Good.xlsm"]
[118,"Geochimica et Cosmochimica Acta, Vol. 61, No. 18, pp. 3835-3850, 1997","Good.xlsm",118,null,11,null,null,null,11,null,null,null,null,null,null,null,null,11,"www.creationismonline.com/YEC/Good.xlsm"]
[119,"www.geology.cwu.edu/facstaff/wendy/ecrafc/Longvalley.xls","Very_Old_K.xls",119,null,11,null,null,null,null,null,11,null,null,null,null,null,null,11,"www.creationismonline.com/YEC/Very_Old_K.xls"]
[120,"http://ir.library.oregonstate.edu/xmlui/bitstream/handle/1957/12572/APPENDIX 2 geochem.xls","Very_Old_Q.xls",120,null,11,null,null,null,null,null,11,null,null,null,null,null,null,11,"www.creationismonline.com/YEC/Very_Old_Q.xls"]
[121,"http://www.nature.com/nature/journal/v485/n7400/extref/nature11140-s3.xls","Very_Old_A_8.xls",121,4,11,1,null,null,null,null,null,11,null,null,null,null,null,11,"www.creationismonline.com/YEC/Very_Old_A_8.xls"]
[122,"Mineralogy and Petrology, 1999, Volume 66, Pages 171-191","Negative.xlsm",122,null,12,null,null,null,null,null,12,null,null,null,null,null,null,12,"www.creationismonline.com/YEC/Negative.xlsm"]
[123,"Chemical Geology, Volume 248, 2008, Pages 40-61","Negative.xlsm",123,2,12,null,null,null,null,null,11,null,null,1,null,null,null,12,"www.creationismonline.com/YEC/Negative.xlsm"]
[124,"Mineralogy and Petrology (1993) 47, Pages 103-126","Excellent.xlsm",124,null,12,null,null,null,null,null,12,null,null,null,null,null,null,12,"www.creationismonline.com/YEC/Excellent.xlsm"]
[125,"Earth and Planetary Science Letters, 42 (1979) Pages 368-378","Excellent.xlsm",125,null,12,null,null,null,null,null,20,null,null,null,null,null,null,20,"www.creationismonline.com/YEC/Excellent.xlsm"]
[126,"http://ees.elsevier.com/lithos/download.aspx?id=48550&guid=fd055aeb-90c3-4095-a14c-c91a93e48fa5&scheme=1","GOOD.xlsm",126,null,13,null,null,null,null,null,13,null,null,null,null,null,null,13,"www.creationismonline.com/YEC/GOOD.xlsm"]
[127,"Chemical Geology 233 (2006) Pages 1-45","Excellent.xlsm",127,null,13,null,null,null,null,null,18,null,null,null,null,null,null,18,"www.creationismonline.com/YEC/Excellent.xlsm"]
[128,"Earth and Planetary Science Letters, Volume 73, 1985, Pages 269-277","Neodymium_Samarium.xlsm",128,null,13,null,null,null,null,null,10,null,null,3,null,null,null,13,"www.creationismonline.com/YEC/Neodymium_Samarium.xlsm"]
[129,"Earth and Planetary Science Letters, Volume 73, 1985, Pages 269-277","Rubidium_Strontium_01.xlsm",129,null,13,null,null,null,null,null,10,null,null,3,null,null,null,13,"www.creationismonline.com/YEC/Rubidium_Strontium_01.xlsm"]
[130,"Geochimica et Cosmochimica Acta, Volume 71, 2007, Pages 3656-3671","Rubidium_Strontium_01.xlsm",130,null,13,1,1,null,null,null,6,null,null,5,null,3,null,{"$f":"SUM(I131:R131)","v":14},{"$f":"(\"www.creationismonline.com/YEC/\" & C131)","v":"www.creationismonline.com/YEC/Rubidium_Strontium_01.xlsm"}]
[131,"Journal Of Petrology, 1999, Volume 40, Number 4, Pages 525-548","Rubidium_Strontium_01.xlsm",131,null,13,null,null,null,null,null,12,null,null,null,null,10,null,22,"www.creationismonline.com/YEC/Rubidium_Strontium_01.xlsm"]
[132,"Geochemica Et Cosmochemica Acta, 2008, Volume 72, Pages 221 - 232","Dating_Methods.xlsm",132,null,13,null,null,null,null,null,null,null,null,13,null,null,null,13,"www.creationismonline.com/YEC/Dating_Methods.xlsm"]
[133,"Meteoritics And Planetary Science, 2003, Volume 38, Number 5, Pages 669 - 710","Dating_Methods.xlsm",133,null,13,null,null,null,13,null,null,null,null,null,null,null,null,13,"www.creationismonline.com/YEC/Dating_Methods.xlsm"]
[134,"Earth And Planetary Science Letters, Volume 337-338, 2012, Pages 164-173","GOOD.xlsm",134,null,14,null,null,null,null,null,14,null,null,null,null,null,null,14,"www.creationismonline.com/YEC/GOOD.xlsm"]
[135,"Journal of Volcanology and Geothermal Research, Volume 117, 2002, Pages 285-296","Negative.xlsm",135,null,14,null,null,null,null,null,null,null,null,null,null,null,null,0,"www.creationismonline.com/YEC/Negative.xlsm"]
[136,"Earth and Planetary Science Letters, 2012, Volume 337-338, Pages 164-173","Excellent.xlsm",136,null,14,null,null,null,null,null,9,null,null,null,null,null,null,9,"www.creationismonline.com/YEC/Excellent.xlsm"]
[137,"Earth and Planetary Science Letters, 42 (1979) 58-70","Lead_206_207.xlsm",137,null,14,null,null,null,null,null,14,null,null,null,null,null,null,14,"www.creationismonline.com/YEC/Lead_206_207.xlsm"]
[138,"Geochimica et Cosmochimica Acta, 2001, Volume 65, Number 4, Pages 571-587","Rubidium_Strontium_01.xlsm",138,null,14,null,null,null,null,null,14,null,null,null,null,null,null,14,"www.creationismonline.com/YEC/Rubidium_Strontium_01.xlsm"]
[139,"Geochimica et Cosmochimica Acta, 1991, Volume 55, Pages 829-848","Rubidium_Strontium_02.xlsm",139,null,14,6,4,null,null,null,null,null,null,null,3,11,null,14,"www.creationismonline.com/YEC/Rubidium_Strontium_02.xlsm"]
[140,"Geochimica et Cosmochimica Acta, 1998, Volume 62, Number 12, Pages 2179-2196","Rubidium_Strontium_02.xlsm",140,null,14,null,null,null,null,null,null,null,null,null,null,14,null,14,"www.creationismonline.com/YEC/Rubidium_Strontium_02.xlsm"]
[141,"Geochimica et Cosmochimica Acta 72 (2008) 5819-5837","Good.xlsm",141,null,14,null,null,null,14,null,null,null,null,null,null,null,null,14,"www.creationismonline.com/YEC/Good.xlsm"]
[142,"Earth and Planetary Science Letters, 1989, Volume 94, Pages 239","Very_Old_A_4.xls",142,null,14,3,1,null,null,null,11,null,null,3,null,null,null,14,"www.creationismonline.com/YEC/Very_Old_A_4.xls"]
[143,"Meteoritics And Planetary Science, 1997, Volume 32, Pages 647 - 670","Dating_Methods.xlsm",143,null,14,3,1,null,null,14,null,null,null,null,null,null,null,14,"www.creationismonline.com/YEC/Dating_Methods.xlsm"]
[144,"Lithos, Volume 117, 2010, Pages 1-19","Impossible.xlsm",144,15,15,8,8,null,null,null,null,null,null,null,36,null,null,36,"www.creationismonline.com/YEC/Impossible.xlsm"]
[145,"Journal Of Petrology, 1998, Volume 39 Number 11-12, Pages 1847-1864","Excellent.xlsm",145,null,15,null,null,null,null,null,101,null,null,null,null,null,null,101,"www.creationismonline.com/YEC/Excellent.xlsm"]
[146,"Earth and Planetary Science Letters, Volume 90, 1988, Pages 26-40","Neodymium_Samarium.xlsm",146,null,15,null,null,null,null,null,15,null,null,null,null,null,null,15,"www.creationismonline.com/YEC/Neodymium_Samarium.xlsm"]
[147,"Geochimica et Cosmochimica Acta, 1992, Volume 56, Pages 1673-1694","Neodymium_Samarium.xlsm",147,null,15,null,null,null,null,null,19,null,null,null,null,null,null,19,"www.creationismonline.com/YEC/Neodymium_Samarium.xlsm"]
[148,"Earth and Planetary Science Letters, Volume 90, 1988, Pages 26-40","Rubidium_Strontium_01.xlsm",148,null,15,null,null,null,null,null,15,null,null,null,null,null,null,15,"www.creationismonline.com/YEC/Rubidium_Strontium_01.xlsm"]
[149,"Journal Of Petrology, 1999, Volume 40, Number 9, Pages 1399-1424","Rubidium_Strontium_01.xlsm",149,null,15,6,6,null,null,null,6,6,null,6,null,null,null,18,"www.creationismonline.com/YEC/Rubidium_Strontium_01.xlsm"]
[150,"Journal Of Petrology, 1999, Volume 40, Number 9, Pages 1399-1424","Plot_Index.xlsm",150,null,15,6,6,null,null,null,6,6,null,3,null,null,null,15,"www.creationismonline.com/YEC/Plot_Index.xlsm"]
[151,"Geochemica Et Cosmochemica Acta, 1990, Volume 54, pages 2549 - 2564","Dating_Methods.xlsm",151,null,15,3,2,null,15,null,null,null,null,null,null,null,null,15,"www.creationismonline.com/YEC/Dating_Methods.xlsm"]
[152,"Contributions Mineral Petrology (1985) 90, Pages 162-171","Excellent.xlsm",152,null,16,null,null,null,null,null,16,null,null,null,null,null,null,16,"www.creationismonline.com/YEC/Excellent.xlsm"]
[153,"Isotope Geoscience, 1 (1983) Pages 23-38","Excellent.xlsm",153,null,16,null,null,null,null,null,15,null,null,null,null,null,null,15,"www.creationismonline.com/YEC/Excellent.xlsm"]
[154,"Earfh and Planetary Science Letters, 94 (1989) Pages 236-244","Excellent.xlsm",154,null,16,null,1,null,null,null,52,null,null,null,null,null,null,52,"www.creationismonline.com/YEC/Excellent.xlsm"]
[155,"Geochemistry, Geophysics And Geosystems, February 14, 2000","Excellent.xlsm",155,null,16,null,null,null,null,null,14,null,null,null,null,null,null,14,"www.creationismonline.com/YEC/Excellent.xlsm"]
[156,"Journal Of Petrology, 2001, Volume 42, Number 7, Pages 1387-1400","Rubidium_Strontium_02.xlsm",156,null,16,5,null,null,null,null,8,null,null,8,null,null,null,16,"www.creationismonline.com/YEC/Rubidium_Strontium_02.xlsm"]
[157,"Meteoritics & Planetary Science, 2007, Volume 42, Numbers 7/8, Pages 1337 - 1350","Plot_Index.xlsm",157,null,16,null,null,null,null,null,15,null,null,1,null,null,null,16,"www.creationismonline.com/YEC/Plot_Index.xlsm"]
[158,"http://petrology.oxfordjournals.org/content/suppl/2006/12/23/egl053.DC1/Electronic_Appendices_1-5.xls","Very_Old_N.xls",158,null,16,null,null,null,null,null,16,null,null,null,null,null,null,16,"www.creationismonline.com/YEC/Very_Old_N.xls"]
[159,"International Earth Science, 2002, Volume 91, Pages 406-432","Th-Pb.xlsm",159,null,17,3,2,null,null,null,3,15,null,null,null,null,null,18,"www.creationismonline.com/YEC/Th-Pb.xlsm"]
[160,"Earth and Planetary Science Letters 245 (2006) 743-761","Research.xlsm",160,null,17,null,null,null,null,null,17,null,null,null,null,null,null,17,"www.creationismonline.com/YEC/Research.xlsm"]
[161,"Journal Of Petrology, 2010, Volume 51, Number 7, Pages 1417-1445","Rubidium_Strontium_02.xlsm",161,null,17,null,null,null,null,null,17,null,null,null,null,null,null,17,"www.creationismonline.com/YEC/Rubidium_Strontium_02.xlsm"]
[162,"http://petrology.oxfordjournals.org/content/suppl/2004/04/19/45.5.1069.DC1/egh004supp.xls","Very_Old_U.xls",162,null,17,null,null,null,null,null,17,null,null,null,null,null,null,17,"www.creationismonline.com/YEC/Very_Old_U.xls"]
[163,"Meteoritics And Planetary Science, 2007, Volume 42, Numbers 7/8, Pages 1321 - 1335","Dating_Methods.xlsm",163,null,17,1,null,null,null,null,null,null,null,17,null,null,null,17,"www.creationismonline.com/YEC/Dating_Methods.xlsm"]
[164,"Geochemica Et Cosmochemica Acta, 1958, Volume 15, Pages 40 - 50","Dating_Methods.xlsm",164,null,17,6,1,17,null,null,null,null,null,null,null,null,null,17,"www.creationismonline.com/YEC/Dating_Methods.xlsm"]
[165,"Precambrian Research 72 ( 1995 ) 247-261","Research.xlsm",165,null,18,null,null,null,null,null,18,null,null,null,null,null,null,18,"www.creationismonline.com/YEC/Research.xlsm"]
[166,"Geochimica et Cosmochimica Acta, 2002, Volume 66, Number 10, Pages 1821-1837","Rubidium_Strontium_02.xlsm",166,8,18,null,null,null,null,null,18,null,null,null,null,11,null,29,"www.creationismonline.com/YEC/Rubidium_Strontium_02.xlsm"]
[167,"http://petrology.oxfordjournals.org/content/suppl/2007/08/13/egm050v1.DC1/jpet-jul-07-0104-File002.xls","Very_Old_W.xls",167,null,18,null,null,null,null,null,18,null,null,null,null,null,null,18,"www.creationismonline.com/YEC/Very_Old_W.xls"]
[168,"www.geokem.com/files/Av-Andesite2.xls","Very_Old_A_1.xls",168,null,18,null,null,null,null,null,18,null,null,null,null,null,null,18,"www.creationismonline.com/YEC/Very_Old_A_1.xls"]
[169,"Lithos, Volume 102, 2008, Pages 43-64","Impossible.xlsm",169,73,19,9,7,null,null,92,null,null,null,null,null,null,null,92,"www.creationismonline.com/YEC/Impossible.xlsm"]
[170,"Earth and Planetary Science Letters 244 (2006) Page 251-269","Excellent.xlsm",170,null,19,null,null,null,null,null,null,null,5,null,null,null,null,5,"www.creationismonline.com/YEC/Excellent.xlsm"]
[171,"Earth and Planetary Science Letters, 76 (1985) Pages 57-70","Excellent.xlsm",171,null,19,null,null,null,null,null,40,3,null,2,null,null,null,45,"www.creationismonline.com/YEC/Excellent.xlsm"]
[172,"Geochimica et Cosmochimica Acta, Vol. 61, No. 23, pp. 5005-5022, 1997","Lead_206_207.xlsm",172,null,19,null,null,null,null,null,17,null,null,null,null,null,null,17,"www.creationismonline.com/YEC/Lead_206_207.xlsm"]
[173,"Geochimica et Cosmochimica Acta, 2003, Volume 67, Number 23, Pages 4577-4595","Rubidium_Strontium_02.xlsm",173,null,19,5,4,null,null,null,8,null,6,5,null,null,null,19,"www.creationismonline.com/YEC/Rubidium_Strontium_02.xlsm"]
[174,"Geochimica et Cosmochimica Acta, 2005, Volume 69, Number 24, Pages 5819-5830","Rubidium_Strontium_02.xlsm",174,null,19,null,null,null,null,null,15,null,1,2,null,1,null,19,"www.creationismonline.com/YEC/Rubidium_Strontium_02.xlsm"]
[175,"Canadian Journal Of Earth Science, 1987, Volume 24, Pages 24-30","Rubidium_Strontium_02.xlsm",175,null,19,12,12,null,null,null,6,null,6,6,null,1,null,19,"www.creationismonline.com/YEC/Rubidium_Strontium_02.xlsm"]
[176,"Meteoritics & Planetary Science 33, Page 921-935 (1998)","Good.xlsm",176,null,19,null,null,null,19,null,null,null,null,null,null,null,null,19,"www.creationismonline.com/YEC/Good.xlsm"]
[177,"Precambrian Research, 1999, Volume 95, Pages 167 - 185","Plot_Index.xlsm",177,null,19,null,null,null,null,null,19,null,null,null,null,null,null,19,"www.creationismonline.com/YEC/Plot_Index.xlsm"]
[178,"Lithos, Volume  117, 2010, Pages 1-19","Future.xlsm",178,19,20,8,7,null,null,null,null,null,null,null,null,39,null,39,"www.creationismonline.com/YEC/Future.xlsm"]
[179,"Earth and Planetarv Science Letters, 46 (1980) Pages 221-232","Excellent.xlsm",179,null,20,null,null,null,null,null,23,null,null,null,null,null,null,23,"www.creationismonline.com/YEC/Excellent.xlsm"]
[180,"Gondwana Research 14 (2008) Page 644-662","Excellent.xlsm",180,null,20,null,null,null,null,null,44,null,null,null,null,null,null,44,"www.creationismonline.com/YEC/Excellent.xlsm"]
[181,"Geochimica et Cosmochimica Acta, 1992, Vol. 56, pp. 347-368","Lead_206_207.xlsm",181,null,20,null,null,null,null,null,22,null,null,null,null,null,null,22,"www.creationismonline.com/YEC/Lead_206_207.xlsm"]
[182,"Geochimica et Cosmochimica Acta, 1986, Volume 50, Pages 2571-2585","Neodymium_Samarium.xlsm",182,null,20,null,null,null,null,null,23,null,null,null,null,null,null,23,"www.creationismonline.com/YEC/Neodymium_Samarium.xlsm"]
[183,"Geochimica et Cosmochimica Acta, 2010, Volume 74, Pages 1417-1435","Th-Pb.xlsm",183,null,20,1,1,null,null,null,17,2,null,1,null,null,null,20,"www.creationismonline.com/YEC/Th-Pb.xlsm"]
[184,"Journal Of Petrology, 1998, Volume 39, Number 5, Pages 859-880 ","Neodymium_Samarium.xlsm",184,13,21,3,3,null,null,null,17,null,null,null,null,17,null,34,"www.creationismonline.com/YEC/Neodymium_Samarium.xlsm"]
[185,"Journal Of Petrology, 1998, Volume 39, Number 5, Pages 859-880 ","Rubidium_Strontium_01.xlsm",185,13,21,null,3,null,null,null,17,null,null,null,null,17,null,34,"www.creationismonline.com/YEC/Rubidium_Strontium_01.xlsm"]
[186,"Journal Of Petrology, 2001, Volume 42, Number 1, Pages 159-172","Rubidium_Strontium_02.xlsm",186,null,21,null,null,null,null,null,21,null,null,null,null,null,null,21,"www.creationismonline.com/YEC/Rubidium_Strontium_02.xlsm"]
[187,"Meteoritics & Planetary Science 40, Nr 9/10, 1433-1454 (2005)","Good.xlsm",187,null,21,null,null,null,21,null,null,null,null,null,null,null,null,21,"www.creationismonline.com/YEC/Good.xlsm"]
[188,"Lithos, Volume 102, 2008, Pages 43-64","Future.xlsm",188,90,22,6,6,null,null,112,null,null,null,null,null,null,null,112,"www.creationismonline.com/YEC/Future.xlsm"]
[189,"Lithos, Volume 77, 2004, Pages 453-472","Negative.xlsm",189,16,22,2,2,null,null,8,18,null,null,null,7,null,6,39,"www.creationismonline.com/YEC/Negative.xlsm"]
[190,"Contributions to Mineralogy and Petrology, Volume 114, 1993, Pages 171 - 188","Excellent.xlsm",190,null,22,null,null,null,null,null,23,null,null,null,null,null,null,23,"www.creationismonline.com/YEC/Excellent.xlsm"]
[191,"Geochimica et Cosmochimica Acta, Vol. 62, No. 21/22, pp. 3527-3540, 1998","Lead_206_207.xlsm",191,null,22,6,null,null,null,null,13,3,null,5,null,null,null,21,"www.creationismonline.com/YEC/Lead_206_207.xlsm"]
[192,"Precambrian Research, 57 (1992) 91-119","Good.xlsm",192,3,22,null,null,null,25,null,null,null,null,null,null,null,null,25,"www.creationismonline.com/YEC/Good.xlsm"]
[193,"Earth And Planetary Science Letters, 2004, Volume 223, Page 360","Dating_Methods.xlsm",193,null,22,2,1,null,null,2,null,null,null,null,null,null,null,2,"www.creationismonline.com/YEC/Dating_Methods.xlsm"]
[194,"Earth and Planetary Science Letters 244 (2006) Page 251-269","Excellent.xlsm",194,null,23,null,null,null,null,null,null,null,5,null,null,null,null,{"$f":"SUM(I195:R195)","v":5},{"$f":"(\"www.creationismonline.com/YEC/\" & C195)","v":"www.creationismonline.com/YEC/Excellent.xlsm"}]
[195,"Nature, Volume 368, 1994, Page 514 - 519 ","Excellent.xlsm",195,null,23,null,null,null,null,null,81,null,null,null,null,null,null,81,"www.creationismonline.com/YEC/Excellent.xlsm"]
[196,"Geochimica et Cosmochimica Acta 73 (2009) 469-488","Lead_206_207.xlsm",196,null,23,null,null,null,null,null,22,null,null,null,null,null,null,22,"www.creationismonline.com/YEC/Lead_206_207.xlsm"]
[197,"Journal Of Petrology, 2008, Volume 49, Number 6, Pages 1069-1096","Rubidium_Strontium_01.xlsm",197,null,23,null,null,null,null,null,23,null,null,null,null,null,null,23,"www.creationismonline.com/YEC/Rubidium_Strontium_01.xlsm"]
[198,"Geochimica et Cosmochimica Acta, Vol. 64, No. 4, pp. 717-732, 2000","Good.xlsm",198,null,23,null,null,23,null,null,null,null,null,null,null,null,null,23,"www.creationismonline.com/YEC/Good.xlsm"]
[199,"Earth and Planetary Science Letters, 1973, Volume 19, Pages 321-329","Dating_Methods.xlsm",199,null,23,null,null,null,null,null,null,16,null,4,4,null,null,24,"www.creationismonline.com/YEC/Dating_Methods.xlsm"]
[200,"Mineralium Deposita (1999) 34, Pages 273-283","Excellent.xlsm",200,null,24,null,null,null,null,null,24,null,null,null,null,null,null,24,"www.creationismonline.com/YEC/Excellent.xlsm"]
[201,"Journal Of Petrology, 2007, Volume 48, Number 4, Pages 661-692","Rubidium_Strontium_01.xlsm",201,null,24,2,null,null,null,null,6,6,6,6,null,null,null,24,"www.creationismonline.com/YEC/Rubidium_Strontium_01.xlsm"]
[202,"Journal Of Petrology, 2007, Volume 48, Number 4, Pages 661-692","Plot_Index.xlsm",202,null,24,2,null,null,null,null,6,6,6,6,null,null,null,24,"www.creationismonline.com/YEC/Plot_Index.xlsm"]
[203,"Lithology and Mineral Resources, 2011, Volume 46, Number 2, Pages 151-164","Th-Pb.xlsm",203,null,25,2,null,null,null,null,10,8,null,6,null,null,null,24,"www.creationismonline.com/YEC/Th-Pb.xlsm"]
[204,"Geochimica et Cosmochimica Acta, 1976, Volume 40, Pages 635 - 643","Plot_Index.xlsm",204,null,25,null,null,null,null,null,27,null,null,null,null,null,null,27,"www.creationismonline.com/YEC/Plot_Index.xlsm"]
[205,"Earth and Planetary Science Letters, 1967, Volume 2, Pages 397 - 408","Dating_Methods.xlsm",205,null,25,null,null,null,null,null,null,null,null,null,null,null,null,0,"www.creationismonline.com/YEC/Dating_Methods.xlsm"]
[206,"Geological Society Of London, Special Publications, 2004, Volume 229, Pages 133-150.","Excellent.xlsm",206,null,26,3,1,null,null,null,26,null,null,null,null,null,null,26,"www.creationismonline.com/YEC/Excellent.xlsm"]
[207,"Journal Analytical Atomic Spectrometry, 2002, Volume 17, Pages 922-928","Excellent.xlsm",207,null,26,null,null,null,null,null,5,null,null,null,null,null,null,5,"www.creationismonline.com/YEC/Excellent.xlsm"]
[208,"Chemical Geology, Volume 277 (2010), Pages 227-244","Excellent.xlsm",208,null,26,13,10,null,null,null,7,null,null,null,null,null,null,7,"www.creationismonline.com/YEC/Excellent.xlsm"]
[209,"Earth and Planetary Science Letters, Volume 42, 1979, Pages 58-70","Rubidium_Strontium_01.xlsm",209,null,26,12,11,null,null,null,14,null,null,null,null,12,null,26,"www.creationismonline.com/YEC/Rubidium_Strontium_01.xlsm"]
[210,"Mereoritics And PIanetary Science, 2000, Volume 35, Pages 341 - 346","Plot_Index.xlsm",210,null,26,2,null,null,null,null,13,null,null,13,null,null,null,26,"www.creationismonline.com/YEC/Plot_Index.xlsm"]
[211,"Geochemistry, Geophysics And Geosystems, Volume 7, Number 11, 2006","GOOD.xlsm",211,null,27,null,null,null,null,null,21,null,6,null,null,null,null,27,"www.creationismonline.com/YEC/GOOD.xlsm"]
[212,"http://www.geo.uu.nl/~kikeb/thesis/database/upb/KB746.xls","Very_Old_B.xls",212,null,27,null,null,null,null,null,null,27,null,null,null,null,null,27,"www.creationismonline.com/YEC/Very_Old_B.xls"]
[213,"Geochimica et Cosmochimica Acta, 2006, Volume 70, Page 2573-2575","Dating_Methods.xlsm",213,null,27,null,null,null,null,27,null,null,null,null,null,null,null,27,"www.creationismonline.com/YEC/Dating_Methods.xlsm"]
[214,"Contrib Mineral Petrology, 2002, Volume 144, Pages 241-253","Th-Pb.xlsm",214,null,28,9,9,null,null,null,10,10,10,10,null,null,null,40,"www.creationismonline.com/YEC/Th-Pb.xlsm"]
[215,"Meteoritics & Planetary Science 46, Nr 1, 35-52 (2011)","Lead_206_207.xlsm",215,null,28,3,2,null,null,null,6,null,10,null,null,null,null,16,"www.creationismonline.com/YEC/Lead_206_207.xlsm"]
[216,"Geochimica et Cosmochimica Acta, Vol. 61, No. 8, pp. 1713-1731, 1997","Lead_206_207.xlsm",216,null,28,null,null,null,null,null,36,null,null,null,null,null,null,36,"www.creationismonline.com/YEC/Lead_206_207.xlsm"]
[217,"Geochimica et Cosmochimica Acta, 1995, Volume 59, Number 12, Pages 2573-2598","Neodymium_Samarium.xlsm",217,null,28,null,null,null,null,null,28,null,null,null,null,null,null,28,"www.creationismonline.com/YEC/Neodymium_Samarium.xlsm"]
[218,"Earth and Planetary Science Letters, Volume 244, 2006, Pages 234-250","Rubidium_Strontium_01.xlsm",218,null,28,null,null,null,null,null,29,null,null,null,null,null,null,29,"www.creationismonline.com/YEC/Rubidium_Strontium_01.xlsm"]
[219,"http://petrology.oxfordjournals.org/content/suppl/2007/11/12/egm059.DC1/jpet-jul-07-0097-File018.xls","Very_Old_S.xls",219,null,28,null,null,null,null,null,28,null,null,null,null,null,null,28,"www.creationismonline.com/YEC/Very_Old_S.xls"]
[220,"Geochimica et Cosmochimica Acta, 2006, Volume 70, Pages 2562-2576","Good.xlsm",220,null,29,null,null,null,29,null,null,null,null,null,null,null,null,29,"www.creationismonline.com/YEC/Good.xlsm"]
[221,"http://petrology.oxfordjournals.org/content/suppl/2000/06/26/41.7.951.DC1/egd056SUPPLEM.xls","Very_Old_T.xls",221,null,29,null,null,null,null,null,29,null,null,null,null,null,null,29,"www.creationismonline.com/YEC/Very_Old_T.xls"]
[222,"Journal Of Geophysical Research, 2011, Volume 116, Page E12008","Th-Pb.xlsm",222,null,30,null,null,null,null,null,31,null,null,null,null,null,null,31,"www.creationismonline.com/YEC/Th-Pb.xlsm"]
[223,"Earth and Planetary Science Letters 142 (1996) 501-512","Lead_206_207.xlsm",223,null,30,null,null,null,null,null,30,null,null,null,null,null,null,30,"www.creationismonline.com/YEC/Lead_206_207.xlsm"]
[224,"Precambrian Research 78 (1996) 261-272","Research.xlsm",224,null,30,null,null,null,null,null,30,null,null,null,null,null,null,30,"www.creationismonline.com/YEC/Research.xlsm"]
[225,"Geochimica et Cosmochimica Acta, 2006, Volume 70, Pages 5990-6015","Rubidium_Strontium_02.xlsm",225,null,30,30,30,null,null,null,null,null,null,null,30,null,null,30,"www.creationismonline.com/YEC/Rubidium_Strontium_02.xlsm"]
[226,"Geochimica et Cosmochimica Acta, Vol. 63, No. 3/4, pp. 473-488, 1999","Lead_206_207.xlsm",226,null,31,null,null,null,null,null,28,null,null,null,null,null,null,28,"www.creationismonline.com/YEC/Lead_206_207.xlsm"]
[227,"http://petrology.oxfordjournals.org/content/suppl/2011/05/11/egr024.DC1/Suppl_Table_1.xls","Very_Old_P.xls",227,null,31,null,null,null,null,null,31,null,null,null,null,null,null,31,"www.creationismonline.com/YEC/Very_Old_P.xls"]
[228,"Earth and Planetary. Science Letters, 94 (1989) Pages 78-96","Excellent.xlsm",228,null,32,null,null,null,null,null,13,null,null,null,null,null,null,13,"www.creationismonline.com/YEC/Excellent.xlsm"]
[229,"Journal Of Petrology, 1997, Volume 38, Number 1, Pages 115-132","Rubidium_Strontium_01.xlsm",229,null,32,null,null,null,null,null,16,11,null,6,null,6,null,39,"www.creationismonline.com/YEC/Rubidium_Strontium_01.xlsm"]
[230,"Gondwana Research 11 (2007) Page 69-91","Excellent.xlsm",230,null,33,null,null,null,null,null,47,null,null,null,null,null,null,47,"www.creationismonline.com/YEC/Excellent.xlsm"]
[231,"Journal Of Petrology, 1998, Volume 39, Number 4, Pages 749-783","Rubidium_Strontium_02.xlsm",231,null,33,null,null,null,null,null,33,null,null,null,null,null,null,33,"www.creationismonline.com/YEC/Rubidium_Strontium_02.xlsm"]
[232,"Journal Of Petrology, 1997, Volume 38, Number 1, Pages 115-132","Plot_Index.xlsm",232,null,33,1,null,null,null,null,16,11,null,7,null,null,null,34,"www.creationismonline.com/YEC/Plot_Index.xlsm"]
[233,"Earth and Planetary Science Letters, 1983, Volume 62, pages 132 - 146","Dating_Methods.xlsm",233,null,34,20,20,null,4,null,10,10,null,10,null,null,null,34,"www.creationismonline.com/YEC/Dating_Methods.xlsm"]
[234,"Chemical Geology, Volume 208, 2004, Pages 89-118","Impossible.xlsm",234,93,35,11,8,null,null,126,null,null,null,null,null,null,null,126,"www.creationismonline.com/YEC/Impossible.xlsm"]
[235,"Earth and Planetary Science Letters 319-320 (2012) 197-206","Research.xlsm",235,null,35,24,19,null,null,null,13,11,null,11,null,null,null,35,"www.creationismonline.com/YEC/Research.xlsm"]
[236,"Earth and Planetary Science Letters, Volume 75, 1985, Pages 354-368","Rubidium_Strontium_01.xlsm",236,null,35,3,6,null,null,null,25,null,null,null,null,15,null,40,"www.creationismonline.com/YEC/Rubidium_Strontium_01.xlsm"]
[237,"Earth and Planetary Science Letters 296 (2010) 267-277","Research.xlsm",237,null,36,null,null,null,null,null,36,null,null,null,null,null,null,36,"www.creationismonline.com/YEC/Research.xlsm"]
[238,"Earth and Planetary Science Letters 245 (2006) 137-152","Research.xlsm",238,null,36,null,null,null,null,null,36,null,null,null,null,null,null,36,"www.creationismonline.com/YEC/Research.xlsm"]
[239,"Geochimica et Cosmochimica Acta, 1990, Voume 54, Pages 3509-3523","Rubidium_Strontium_01.xlsm",239,null,36,9,2,null,null,null,null,null,null,null,null,37,null,37,"www.creationismonline.com/YEC/Rubidium_Strontium_01.xlsm"]
[240,"Geochimica et Cosmochimica Acta, 2008, Volume 72, Pages 2067 - 2089","Rubidium_Strontium_01.xlsm",240,3,36,11,9,null,null,null,17,6,null,22,null,null,null,45,"www.creationismonline.com/YEC/Rubidium_Strontium_01.xlsm"]
[241,"Earth and Planetary Science Letters 301 (2011) 469-478","Research.xlsm",241,null,37,null,null,null,null,null,37,null,null,null,null,null,null,37,"www.creationismonline.com/YEC/Research.xlsm"]
[242,"Earth and Planetary Science Letters, 104 (1991) 1-15","Research.xlsm",242,null,37,null,null,null,null,null,37,null,null,null,null,null,null,37,"www.creationismonline.com/YEC/Research.xlsm"]
[243,"Meteoritics & Planetary Science, 2004, Volume 39, Number 12, Pages 2033 - 2041","Plot_Index.xlsm",243,null,37,12,6,null,null,null,14,17,null,8,null,null,null,39,"www.creationismonline.com/YEC/Plot_Index.xlsm"]
[244,"Precambrian Research, 1989, Volume 42, Pages 255 - 291","Dating_Methods.xlsm",244,null,37,null,null,null,null,37,null,null,null,null,null,null,null,37,"www.creationismonline.com/YEC/Dating_Methods.xlsm"]
[245,"Journal Of Petrology, 2010, Volume 51, Number 10, Pages 2003-2045","Rubidium_Strontium_01.xlsm",245,null,38,null,null,null,null,null,19,19,1,1,null,null,null,40,"www.creationismonline.com/YEC/Rubidium_Strontium_01.xlsm"]
[246,"Journal Of Petrology, 2001, Volume 42, Number 4, Pages 731-763","Plot_Index.xlsm",246,null,38,28,21,null,null,null,1,null,null,37,null,null,null,38,"www.creationismonline.com/YEC/Plot_Index.xlsm"]
[247,"Chemical Geology, Volume 277, 2010, Pages 227-244","GOOD.xlsm",247,null,39,14,10,null,null,null,13,13,null,13,null,null,null,39,"www.creationismonline.com/YEC/GOOD.xlsm"]
[248,"Chemical Geology, 93 (1991) Pages 231-243","Excellent.xlsm",248,null,39,null,null,null,null,null,13,null,null,3,null,null,null,16,"www.creationismonline.com/YEC/Excellent.xlsm"]
[249,"Earth and Planetary Science Letters, 34 (1977) 419-431","Research.xlsm",249,null,39,null,null,null,null,null,39,null,null,null,null,null,null,39,"www.creationismonline.com/YEC/Research.xlsm"]
[250,"Geochimica et Cosmochimica Acta, 2001, Volume 65, Number 22, Pages 4243-4255","Rubidium_Strontium_02.xlsm",250,null,39,null,null,null,null,null,28,null,null,11,null,null,null,39,"www.creationismonline.com/YEC/Rubidium_Strontium_02.xlsm"]
[251,"Chemical Geology, 2009, Volume 259, Pages 143 - 151","Plot_Index.xlsm",251,null,41,null,null,null,null,null,41,null,null,null,null,null,null,41,"www.creationismonline.com/YEC/Plot_Index.xlsm"]
[252,"Chemical Geology 236 (2007) Pages 27-41","Excellent.xlsm",252,null,42,null,1,null,null,null,44,null,null,null,null,null,null,44,"www.creationismonline.com/YEC/Excellent.xlsm"]
[253,"Precambrian Research 114 (2002) 277-294","Research.xlsm",253,null,43,null,null,null,null,null,45,null,null,null,null,null,null,45,"www.creationismonline.com/YEC/Research.xlsm"]
[254,"Geochemistry And Geophysics Geosystems, 2006, Volume 7, Number 8, Pages 1-29","Excellent.xlsm",254,null,44,null,null,null,null,null,12,null,null,null,null,null,null,12,"www.creationismonline.com/YEC/Excellent.xlsm"]
[255,"Journal Of Petrology, 2004, Volume 45, Number 3, Pages 555-607","Rubidium_Strontium_01.xlsm",255,null,44,13,9,null,null,null,12,12,6,11,null,null,null,41,"www.creationismonline.com/YEC/Rubidium_Strontium_01.xlsm"]
[256,"Journal Of Petrology, 2004, Volume 45, Number 3, Pages 555-607","Plot_Index.xlsm",256,null,44,13,9,null,null,null,13,13,6,12,null,null,null,44,"www.creationismonline.com/YEC/Plot_Index.xlsm"]
[257,"http://petrology.oxfordjournals.org/content/suppl/2010/03/31/egq009.DC1/ElecApp_A12_TephraFromOutsideIzuBonin.xls","Very_Old_V.xls",257,null,44,null,null,null,null,null,44,null,null,null,null,null,null,44,"www.creationismonline.com/YEC/Very_Old_V.xls"]
[258,"Geochimica el Cosmochimica Acta, 1991, Volume 55, Pages 2025-2043","Rubidium_Strontium_02.xlsm",258,null,45,null,null,null,null,null,45,null,null,null,null,null,null,{"$f":"SUM(I259:R259)","v":45},{"$f":"(\"www.creationismonline.com/YEC/\" & C259)","v":"www.creationismonline.com/YEC/Rubidium_Strontium_02.xlsm"}]
[259,"Geochimica et Cosmochimica Acta, 2008, Volume 72, Pages 2067 - 2089","Plot_Index.xlsm",259,null,45,16,13,null,null,null,19,2,null,18,null,null,null,39,"www.creationismonline.com/YEC/Plot_Index.xlsm"]
[260,"http://georoc.mpch-mainz.gwdg.de/georoc/","Very_Old_B_9.xlsx",260,null,45,null,null,null,null,null,45,null,null,null,null,null,null,45,"www.creationismonline.com/YEC/Very_Old_B_9.xlsx"]
[261,"Precambrian Research 113 (2002) 155-168","Research.xlsm",261,null,46,null,null,null,null,null,43,null,null,null,null,null,null,43,"www.creationismonline.com/YEC/Research.xlsm"]
[262,"Earth and Planetary Science Letters 134 (1995) 169-185","Research.xlsm",262,null,46,4,1,null,null,null,20,20,null,6,null,null,null,46,"www.creationismonline.com/YEC/Research.xlsm"]
[263,"Earth and Planetary Science Letters, Volume 134, 1995, Pages 169-185","Rubidium_Strontium_01.xlsm",263,null,46,null,1,null,null,null,20,20,null,7,null,null,null,47,"www.creationismonline.com/YEC/Rubidium_Strontium_01.xlsm"]
[264,"Meteoritics And Planetary Science, 2009, Volume 44, Number 2, Pages 293 - 321","Dating_Methods.xlsm",264,null,46,9,2,null,46,null,null,null,null,null,null,null,null,46,"www.creationismonline.com/YEC/Dating_Methods.xlsm"]
[265,"Gondwana Research 11 (2007) Page 382-395","Excellent.xlsm",265,null,47,null,null,null,null,null,8,null,null,null,null,null,null,8,"www.creationismonline.com/YEC/Excellent.xlsm"]
[266,"Journal Of Petrology, April 11, 2012, Pages 1-32","Excellent.xlsm",266,null,47,4,4,null,null,null,5,null,null,null,null,null,null,5,"www.creationismonline.com/YEC/Excellent.xlsm"]
[267,"Nature, 1979, Volume 277, Pages 554 - 556","Good.xlsm",267,null,47,1,null,null,47,null,null,null,null,null,null,null,null,47,"www.creationismonline.com/YEC/Good.xlsm"]
[268,"http://petrology.oxfordjournals.org/content/suppl/2008/03/20/egn018.DC1/jpet-jun-07-0081-File027.xls","Very_Old_M.xls",268,null,48,null,null,null,null,null,48,null,null,null,null,null,null,48,"www.creationismonline.com/YEC/Very_Old_M.xls"]
[269,"Journal Of Petrology, Volume 0, Number 0, Pages 1-32, 2012 ","GOOD.xlsm",269,null,49,4,4,null,null,null,23,21,null,3,null,null,null,47,"www.creationismonline.com/YEC/GOOD.xlsm"]
[270,"Earth and Planetary Science Letters, Volume 319-320, 2012, Pages 197-206","Th-Pb.xlsm",270,null,49,23,19,null,null,null,13,12,12,12,null,null,null,49,"www.creationismonline.com/YEC/Th-Pb.xlsm"]
[271,"Geochimica et Cosmochimica Acta 73 (2009) 469-488","Th-Pb.xlsm",271,null,52,12,7,null,null,null,36,9,null,5,null,null,null,50,"www.creationismonline.com/YEC/Th-Pb.xlsm"]
[272,"Earth and Planetary Science Letters, 2008,  doi:10.1016/j.epsl.2008.08.023","GOOD.xlsm",272,null,53,null,null,null,null,null,53,null,null,null,null,null,null,53,"www.creationismonline.com/YEC/GOOD.xlsm"]
[273,"Geochimica et Cosmochimica Acta, Volume 73, 2009, Pages 469-488","Th-Pb.xlsm",273,null,53,13,8,null,null,null,37,11,null,6,null,null,null,54,"www.creationismonline.com/YEC/Th-Pb.xlsm"]
[274,"Journal Of Geophysical Research, 1998, Volume 103, Number B9, Pages 20,963-20,979","Neodymium_Samarium.xlsm",274,null,56,6,1,null,null,null,27,22,null,9,null,null,null,58,"www.creationismonline.com/YEC/Neodymium_Samarium.xlsm"]
[275,"Journal Of Geophysical Research, 1998, Volume 103, Number B9, Pages 20,963-20,979","Rubidium_Strontium_01.xlsm",275,null,56,6,1,null,null,null,27,22,null,8,null,null,null,57,"www.creationismonline.com/YEC/Rubidium_Strontium_01.xlsm"]
[276,"Earth and Planetary Science Letters, 47 (1980) Pages 370-382","Excellent.xlsm",276,null,57,null,null,null,null,null,12,null,null,null,null,null,null,12,"www.creationismonline.com/YEC/Excellent.xlsm"]
[277,"http://pubs.usgs.gov/of/2008/1142/tables/table04.xls","Very_Old_A_9.xls",277,null,57,23,18,null,null,null,20,20,null,18,null,null,null,58,"www.creationismonline.com/YEC/Very_Old_A_9.xls"]
[278,"Earth and Planetary Science Letters, Volume 183, 2000, Pages 73-92","Neodymium_Samarium.xlsm",278,null,58,null,null,null,null,null,58,null,null,null,null,null,null,58,"www.creationismonline.com/YEC/Neodymium_Samarium.xlsm"]
[279,"Earth and Planetary Science Letters, Volume 183, 2000, Pages 73-92","Rubidium_Strontium_01.xlsm",279,null,58,null,null,null,null,null,58,null,null,null,null,null,null,58,"www.creationismonline.com/YEC/Rubidium_Strontium_01.xlsm"]
[280,"Geochimica et Cosmochimica Acta, 1997, Volume 61, Number 8, Pages 1713-1731","Rubidium_Strontium_02.xlsm",280,null,58,null,null,null,null,null,58,null,null,null,null,null,null,58,"www.creationismonline.com/YEC/Rubidium_Strontium_02.xlsm"]
[281,"Geochemica Et Cosmochemica Acta, 1976, Volume 40, pages 617 - 634","Dating_Methods.xlsm",281,null,60,6,2,null,null,null,null,16,18,28,null,null,null,62,"www.creationismonline.com/YEC/Dating_Methods.xlsm"]
[282,"Earth And Planetary Science Letters, Volume 302, 2011, Pages 154-162","GOOD.xlsm",282,null,63,null,null,null,null,null,63,null,null,null,null,null,null,63,"www.creationismonline.com/YEC/GOOD.xlsm"]
[283,"Precambrian Research 162 (2008) 441-474","Research.xlsm",283,null,63,null,null,null,null,null,46,null,null,null,null,null,null,46,"www.creationismonline.com/YEC/Research.xlsm"]
[284,"Geochimica et Cosmochimica Acta, 1995, Volume 59, Number 11, Pages 2319-2329","Th-Pb.xlsm",284,null,63,32,30,null,null,null,19,16,null,15,null,null,null,50,"www.creationismonline.com/YEC/Th-Pb.xlsm"]
[285,"Earth and Planetary Science Letters, Volume 105, 1991, Pages 149-169","Neodymium_Samarium.xlsm",285,24,65,12,9,null,null,null,26,24,null,16,null,24,null,90,"www.creationismonline.com/YEC/Neodymium_Samarium.xlsm"]
[286,"Earth and Planetary Science Letters, Volume 105, 1991, Pages 149-169","Rubidium_Strontium_01.xlsm",286,24,65,12,9,null,null,null,26,24,null,16,null,24,null,90,"www.creationismonline.com/YEC/Rubidium_Strontium_01.xlsm"]
[287,"Geochemistry, Geophysics And Geosystems, 2005, Volume 6, Number 11","Excellent.xlsm",287,null,66,null,null,null,null,null,123,null,null,null,null,null,null,123,"www.creationismonline.com/YEC/Excellent.xlsm"]
[288,"Geochimica et Cosmochimica Acta 72 (2008) 5799-5818","Lead_206_207.xlsm",288,null,66,12,7,null,null,null,25,10,null,6,null,null,null,41,"www.creationismonline.com/YEC/Lead_206_207.xlsm"]
[289,"Journal Of Petrology, Page 1 Of 45, Doi:10.1093/petrology/egl025","GOOD.xlsm",289,null,67,null,null,null,null,null,67,null,null,null,null,null,null,67,"www.creationismonline.com/YEC/GOOD.xlsm"]
[290,"Earth and Planetary Science Letters, 1981, Volume 55, Pages 123 - 149","Good.xlsm",290,null,71,null,null,null,71,null,null,null,null,null,null,null,null,71,"www.creationismonline.com/YEC/Good.xlsm"]
[291,"Geochimica et Cosmochimica Acta, 1993, Volume 57, Pages 4687-4702","Neodymium_Samarium.xlsm",291,null,72,19,14,null,null,null,28,23,9,24,null,null,null,84,"www.creationismonline.com/YEC/Neodymium_Samarium.xlsm"]
[292,"Geochimica et Cosmochimica Acta, 1993, Volume 57, Pages 4687-4702","Rubidium_Strontium_01.xlsm",292,null,72,19,14,null,null,null,23,24,9,24,null,null,null,80,"www.creationismonline.com/YEC/Rubidium_Strontium_01.xlsm"]
[293,"Earth and Planetary Science Letters 300 (2010) 152-163","Lead_206_207.xlsm",293,null,73,null,null,null,null,null,73,null,null,null,null,null,null,73,"www.creationismonline.com/YEC/Lead_206_207.xlsm"]
[294,"www.ldeo.columbia.edu/~cai/Pb.xls","Very_Old_D.xls",294,null,74,null,null,null,null,null,74,null,null,null,null,null,null,74,"www.creationismonline.com/YEC/Very_Old_D.xls"]
[295,"Geochimica et Cosmochimica Acta, 2002, Volume 66, Number 14, Pages 2569-2581","Neodymium_Samarium.xlsm",295,null,75,null,null,null,null,null,48,null,null,null,null,null,null,48,"www.creationismonline.com/YEC/Neodymium_Samarium.xlsm"]
[296,"Geology Magazine, Volume 141, Number 1, 2004, Pages 55-62","GOOD.xlsm",296,null,76,9,9,null,null,null,38,null,null,38,null,null,null,76,"www.creationismonline.com/YEC/GOOD.xlsm"]
[297,"Earth and Planetary Science Letters, 42 (1979) Pages 368-378","Excellent.xlsm",297,null,76,17,9,null,null,null,20,null,null,null,null,null,null,20,"www.creationismonline.com/YEC/Excellent.xlsm"]
[298,"Geochimica et Cosmochimica Acta, 1970, Vol. 34, pp. 1039 to 1106.","Lead_206_207.xlsm",298,null,79,null,null,null,null,null,78,null,null,null,null,null,null,78,"www.creationismonline.com/YEC/Lead_206_207.xlsm"]
[299,"Journal Of Geophysical Research, 1981, Volume 86, Number B11, Pages 10663-10680","Rubidium_Strontium_02.xlsm",299,null,79,46,32,null,null,null,25,28,null,26,null,null,null,79,"www.creationismonline.com/YEC/Rubidium_Strontium_02.xlsm"]
[300,"Science, Volume 282, 1998, Page 1481","Excellent.xlsm",300,null,80,null,null,null,null,null,9,null,null,null,null,null,null,9,"www.creationismonline.com/YEC/Excellent.xlsm"]
[301,"Precambrian Research 90 (1998) 203-238","Research.xlsm",301,null,80,27,null,null,null,null,null,null,null,80,null,null,null,80,"www.creationismonline.com/YEC/Research.xlsm"]
[302,"Earth And Planetary Science Letters, 1972, Volume 14, Pages 281 - 304.","Dating_Methods.xlsm",302,null,80,7,3,null,null,null,22,20,19,19,null,null,null,80,"www.creationismonline.com/YEC/Dating_Methods.xlsm"]
[303,"Canadian Journal Of Earth Science, 2006, Volume 43, Pages 1419-1444","Neodymium_Samarium.xlsm",303,null,82,39,21,null,null,null,28,27,null,27,null,null,null,82,"www.creationismonline.com/YEC/Neodymium_Samarium.xlsm"]
[304,"Canadian Journal Of Earth Science, 2006, Volume 43, Pages 1419-1444","Rubidium_Strontium_01.xlsm",304,null,82,39,21,null,null,null,28,27,null,27,null,null,null,82,"www.creationismonline.com/YEC/Rubidium_Strontium_01.xlsm"]
[305,"Journal Of Petrology, Volume 0, Number 0, Pages 1-29, 2010 ","GOOD.xlsm",305,null,85,null,null,null,null,null,85,null,null,null,null,null,null,85,"www.creationismonline.com/YEC/GOOD.xlsm"]
[306,"http://geosphere.gsapubs.org/content/suppl/2009/02/18/4.5.829.DC1/10.1130_GES00166-S1.xls","Very_Old_A_7.xls",306,null,86,null,null,null,null,null,86,null,null,null,null,null,null,86,"www.creationismonline.com/YEC/Very_Old_A_7.xls"]
[307,"Geochimica et Cosmochimica Acta, 2001, Volume 65, Number 15, Pages 2555-2570","Neodymium_Samarium.xlsm",307,null,87,null,null,null,null,null,168,null,null,null,null,null,null,168,"www.creationismonline.com/YEC/Neodymium_Samarium.xlsm"]
[308,"Geochimica et Cosmochimica Acta, 2007, Volume 71, Pages 1583 - 1604","Plot_Index.xlsm",308,null,91,null,null,null,null,null,91,null,null,null,null,null,null,91,"www.creationismonline.com/YEC/Plot_Index.xlsm"]
[309,"Earth and Planetary Sctence Letters, 113 (1992) 107-128","Lead_206_207.xlsm",309,null,92,13,11,null,null,null,50,null,null,29,null,null,null,79,"www.creationismonline.com/YEC/Lead_206_207.xlsm"]
[310,"Journal Of Petrology, 1998, Volume 39, Number 4, Pages 711-748","Rubidium_Strontium_01.xlsm",310,null,92,2,2,null,null,null,30,25,23,17,null,null,null,95,"www.creationismonline.com/YEC/Rubidium_Strontium_01.xlsm"]
[311,"Journal Of Petrology, 2001, Volume 42, Number 4, Pages 731-763","Rubidium_Strontium_01.xlsm",311,null,93,28,21,null,null,null,56,null,null,37,null,null,null,93,"www.creationismonline.com/YEC/Rubidium_Strontium_01.xlsm"]
[312,"http://www1.tecnet.or.jp/lab/data/db_sci/OIB.XLS","Very_Old_A_3.xls",312,null,93,null,null,null,null,null,93,null,null,null,null,null,null,93,"www.creationismonline.com/YEC/Very_Old_A_3.xls"]
[313,"www.nature.com/nature/journal/v434/n7035/extref/nature03402-s1.xls","Very_Old_B_3.xls",313,null,93,null,null,null,null,null,93,null,null,null,null,null,null,93,"www.creationismonline.com/YEC/Very_Old_B_3.xls"]
[314,"Journal Of Petrology, 1998, Volume 39, Number 4, Pages 711-748","Plot_Index.xlsm",314,null,95,2,2,null,null,null,30,25,28,21,null,null,null,104,"www.creationismonline.com/YEC/Plot_Index.xlsm"]
[315,"Earth and Planetary Science Letters 306 (2011) 86-97","Research.xlsm",315,null,96,null,null,null,null,null,96,null,null,null,null,null,null,96,"www.creationismonline.com/YEC/Research.xlsm"]
[316,"Earth And Planetary Science Letters 17 (1972) 36-51","Good.xlsm",316,null,98,null,null,null,null,null,35,21,21,21,null,null,null,98,"www.creationismonline.com/YEC/Good.xlsm"]
[317,"Ore Geology Reviews 31 (2007) Pages 337-359","Excellent.xlsm",317,null,101,null,null,null,null,null,null,21,null,3,null,null,null,24,"www.creationismonline.com/YEC/Excellent.xlsm"]
[318,"Earth and Planetary Science Letters 240 (2005) 605- 620","Research.xlsm",318,null,104,null,null,null,null,null,104,null,null,null,null,null,null,104,"www.creationismonline.com/YEC/Research.xlsm"]
[319,"Chemical Geology, 1990, Volume 80, pages 201 - 204","Dating_Methods.xlsm",319,null,104,40,12,null,null,104,null,null,null,null,null,null,null,104,"www.creationismonline.com/YEC/Dating_Methods.xlsm"]
[320,"Earth and Planetary Science Letters, Volume 113, 1992, Pages 107-128","Neodymium_Samarium.xlsm",320,null,106,22,18,null,null,null,50,24,null,32,null,null,null,106,"www.creationismonline.com/YEC/Neodymium_Samarium.xlsm"]
[321,"Earth and Planetary Science Letters, Volume 113, 1992, Pages 107-128","Rubidium_Strontium_01.xlsm",321,null,106,22,18,null,null,null,50,24,null,32,null,null,null,106,"www.creationismonline.com/YEC/Rubidium_Strontium_01.xlsm"]
[322,"http://petrology.oxfordjournals.org/content/suppl/2007/02/14/egl079.DC1/egl079-jpet-may-06-0042-File004.xls","Very_Old_H.xls",322,null,106,null,null,null,null,null,106,null,null,null,null,null,null,{"$f":"SUM(I323:R323)","v":106},{"$f":"(\"www.creationismonline.com/YEC/\" & C323)","v":"www.creationismonline.com/YEC/Very_Old_H.xls"}]
[323,"Geochimica et Cosmochimica Acta 71 (2007) 5514-5527","Lead_206_207.xlsm",323,null,113,null,null,null,null,null,113,null,null,null,null,null,null,113,"www.creationismonline.com/YEC/Lead_206_207.xlsm"]
[324,"Mineral Deposita, 2010, Volume 45, Pages 393-410","Th-Pb.xlsm",324,null,120,49,39,null,null,null,48,34,18,18,null,null,null,118,"www.creationismonline.com/YEC/Th-Pb.xlsm"]
[325,"Gcochimica et Cosmochimtca Acta, 1995, Volume 59, Number 2, Pages 381-390","Th-Pb.xlsm",325,null,120,77,73,null,null,null,42,37,null,40,null,null,null,119,"www.creationismonline.com/YEC/Th-Pb.xlsm"]
[326,"Journal Of Petrology, 1998, Volume 39, Number 7, Pages 1285-1306","Plot_Index.xlsm",326,null,131,38,32,null,null,null,59,45,null,30,null,null,null,134,"www.creationismonline.com/YEC/Plot_Index.xlsm"]
[327,"ftp://rock.geosociety.org/pub/reposit/2008/2008019.xls","Very_Old_C_4.xls",327,null,147,null,null,null,null,null,147,null,null,null,null,null,null,147,"www.creationismonline.com/YEC/Very_Old_C_4.xls"]
[328,"http://www1.tecnet.or.jp/lab/data/db_sci/MORB.xls","Very_Old_A_2.xls",328,null,152,null,null,null,null,null,152,null,null,null,null,null,null,152,"www.creationismonline.com/YEC/Very_Old_A_2.xls"]
[329,"Geochimica et Cosmochimica Acta, 1994, Volume 58, Number 15, Pages 3155-3169","Th-Pb.xlsm",329,null,169,34,21,null,null,null,100,1,null,69,null,null,null,170,"www.creationismonline.com/YEC/Th-Pb.xlsm"]
[330,"Earth and Planetarv Science Letters, 46 (1980) Pages 221-232","Excellent.xlsm",330,null,172,null,null,null,null,null,23,null,null,null,null,null,null,23,"www.creationismonline.com/YEC/Excellent.xlsm"]
[331,"http://geosphere.gsapubs.org/content/suppl/2009/02/18/3.6.683.DC1/00138_App3.xls","Very_Old_E.xls",331,null,174,97,26,null,null,null,70,98,null,10,null,null,null,178,"www.creationismonline.com/YEC/Very_Old_E.xls"]
[332,"www.geo.uu.nl/~kikeb/thesis/database/upb/KB770.xls","Very_Old_C.xls",332,null,181,27,7,null,null,null,null,181,null,null,null,null,null,181,"www.creationismonline.com/YEC/Very_Old_C.xls"]
[333,"Journal Of Petrology, 2005, Volume 46, Number 4, Pages 829-858","Rubidium_Strontium_01.xlsm",333,null,192,75,57,null,null,null,70,70,null,52,null,null,null,192,"www.creationismonline.com/YEC/Rubidium_Strontium_01.xlsm"]
[334,"Journal Of Petrology, 2005, Volume 46, Number 4, Pages 829-858","Plot_Index.xlsm",334,null,192,75,57,null,null,null,70,70,null,55,null,null,null,195,"www.creationismonline.com/YEC/Plot_Index.xlsm"]
[335,"http://earthref.org/","Very_Old_C_3.xls",335,null,204,46,37,null,null,null,102,23,39,40,null,null,null,204,"www.creationismonline.com/YEC/Very_Old_C_3.xls"]
[336,"http://pubs.usgs.gov/of/1987/0259/report.pdf","Very_Old_C_2.xls",336,null,207,null,null,null,null,null,207,null,null,null,null,null,null,207,"www.creationismonline.com/YEC/Very_Old_C_2.xls"]
[337,"Economic Geology, Volume 97, 2002, Pages 23-42","Rubidium_Strontium_01.xlsm",337,null,221,219,218,null,null,null,null,null,null,null,null,224,null,224,"www.creationismonline.com/YEC/Rubidium_Strontium_01.xlsm"]
[338,"http://www.earthchem.org/deeplith/search","Very_Old_C_1.xls",338,null,245,11,6,null,null,null,216,10,null,27,null,null,null,253,"www.creationismonline.com/YEC/Very_Old_C_1.xls"]
[339,"www.geo.unibe.ch/isotopegeology/homepbnd.xls","Very_Old_J.xls",339,null,264,null,null,null,null,null,264,null,null,null,null,null,null,264,"www.creationismonline.com/YEC/Very_Old_J.xls"]
[340,"http://geosphere.gsapubs.org/content/suppl/2010/09/29/6.5.663.DC1/530_supp1.xls","Very_Old_A.xls",340,null,276,261,253,null,null,null,19,257,null,19,null,null,null,295,"www.creationismonline.com/YEC/Very_Old_A.xls"]
[341,"http://geosphere.gsapubs.org/content/suppl/2012/03/19/GES00728.1.DC1/GS728_SuppT02.xls","Very_Old_A_6.xls",341,null,397,null,null,null,null,null,397,null,null,null,null,null,null,397,"www.creationismonline.com/YEC/Very_Old_A_6.xls"]
[342,"www.nature.com/ngeo/journal/v4/n12/extref/ngeo1263-s1.xls","Very_Old_B_5.xls",342,null,440,null,null,null,null,null,440,null,null,null,null,null,null,440,"www.creationismonline.com/YEC/Very_Old_B_5.xls"]
[343,"www.nature.com/nature/journal/v476/n7361/extref/nature10321-s2.xls","Very_Old_B_2.xls",343,null,446,null,null,null,null,null,446,null,null,null,null,null,null,446,"www.creationismonline.com/YEC/Very_Old_B_2.xls"]
[344,"http://georoc.mpch-mainz.gwdg.de/georoc/webseite/Expert%20Datasets/Lustrino_Wilson09.xls","Very_Old_B_8.xlsx",344,null,1012,null,null,null,null,null,1012,null,null,null,null,null,null,1012,"www.creationismonline.com/YEC/Very_Old_B_8.xlsx"]
[345,"www.ruf.rice.edu/~ctlee/BOXMODEL.xls","Very_Old_R.xls",345,null,1122,437,412,null,null,null,441,147,51,189,null,null,null,828,"www.creationismonline.com/YEC/Very_Old_R.xls"]
[346,"http://petrology.oxfordjournals.org/content/suppl/2007/02/15/egl078.DC1/jpet-aug-06-0094-File006.xls","Very_Old_Y.xls",346,null,1549,null,null,null,null,null,1549,null,null,null,null,null,null,1549,"www.creationismonline.com/YEC/Very_Old_Y.xls"]
[347,"http://www.navdat.org","Very_Old_B_7.xls",347,null,3314,null,null,null,null,null,3314,null,null,null,null,null,null,3314,"www.creationismonline.com/YEC/Very_Old_B_7.xls"]
[348,null,null,348,{"$f":"SUM(E1:E348)","v":715},20118,2456,1940,66,404,792,14885,1836,326,1527,142,564,95,20637]
[349,null,null,349,"Negative","Earth","Galaxy","Universe","K/Ar","Ar/Ar","Re/Os","Pb 07/06","Th-232","U-235","U-238","Sm/Nd","Rb/Sr","Lu/Hf","Total"]
[]
[]
[]
[]
[]
[]
[]
[]
["Number","Spreadsheet","Microsoft Excel Hyperlink"]
[1,"Future_Ages_12","http://www.creationismonline.com/YEC/Future.xlsm"]
[2,"Future_Ages_26","http://www.creationismonline.com/YEC/Future.xlsm"]
[3,"Greater_01","http://www.creationismonline.com/YEC/Impossible.xlsm"]
[4,"Older_07","http://www.creationismonline.com/YEC/Impossible.xlsm"]
[5,"Older_11","http://www.creationismonline.com/YEC/Impossible.xlsm"]
[6,"Pb_207_07","http://www.creationismonline.com/YEC/Research.xlsm"]
[7,"Nd_Sm_11","http://www.creationismonline.com/YEC/Neodymium_Samarium.xlsm"]
[8,"Rb-Sr_06","http://www.creationismonline.com/YEC/Rubidium_Strontium_01.xlsm"]
[9,"Rb-Sr_08","http://www.creationismonline.com/YEC/Rubidium_Strontium_01.xlsm"]
[10,"Rb-Sr_18","http://www.creationismonline.com/YEC/Rubidium_Strontium_01.xlsm"]
[11,"Rb-Sr_24","http://www.creationismonline.com/YEC/Rubidium_Strontium_01.xlsm"]
[12,"Rb-Sr_38","http://www.creationismonline.com/YEC/Rubidium_Strontium_01.xlsm"]
[13,"Very_Old_06","http://www.creationismonline.com/YEC/Good.xlsm"]
[14,"Very_Old_07","http://www.creationismonline.com/YEC/Good.xlsm"]
[15,"Ages_002","http://www.creationismonline.com/YEC/Dating_Methods.xlsm"]
[16,"Nature_1","http://www.creationismonline.com/YEC/Dating_Methods.xlsm"]
[17,"Nature_2","http://www.creationismonline.com/YEC/Dating_Methods.xlsm"]
[18,"Niemeyer","http://www.creationismonline.com/YEC/Dating_Methods.xlsm"]
[19,"Greater_03","http://www.creationismonline.com/YEC/Impossible.xlsm"]
[20,"Older_12","http://www.creationismonline.com/YEC/Impossible.xlsm"]
[21,"Excellent_05","http://www.creationismonline.com/YEC/Excellent.xlsm"]
[22,"Rb-Sr_13","http://www.creationismonline.com/YEC/Rubidium_Strontium_01.xlsm"]
[23,"Very_Old_13","http://www.creationismonline.com/YEC/Good.xlsm"]
[24,"Ages_006","http://www.creationismonline.com/YEC/Dating_Methods.xlsm"]
[25,"Ages_019","http://www.creationismonline.com/YEC/Dating_Methods.xlsm"]
[26,"Amelin_E","http://www.creationismonline.com/YEC/Dating_Methods.xlsm"]
[27,"Jessberger","http://www.creationismonline.com/YEC/Dating_Methods.xlsm"]
[28,"Okano","http://www.creationismonline.com/YEC/Dating_Methods.xlsm"]
[29,"Older_8","http://www.creationismonline.com/YEC/Dating_Methods.xlsm"]
[30,"Older_7","http://www.creationismonline.com/YEC/Dating_Methods.xlsm"]
[31,"Older_6","http://www.creationismonline.com/YEC/Dating_Methods.xlsm"]
[32,"Older_2","http://www.creationismonline.com/YEC/Dating_Methods.xlsm"]
[33,"Future_Ages_16","http://www.creationismonline.com/YEC/Future.xlsm"]
[34,"Older_06","http://www.creationismonline.com/YEC/Impossible.xlsm"]
[35,"Excellent_20","http://www.creationismonline.com/YEC/Excellent.xlsm"]
[36,"Th_232_02","http://www.creationismonline.com/YEC/Research.xlsm"]
[37,"Rb-Sr_31","http://www.creationismonline.com/YEC/Rubidium_Strontium_01.xlsm"]
[38,"Rb-Sr_37","http://www.creationismonline.com/YEC/Rubidium_Strontium_01.xlsm"]
[39,"Rb-Sr_15","http://www.creationismonline.com/YEC/Rubidium_Strontium_02.xlsm"]
[40,"Very_Old_05","http://www.creationismonline.com/YEC/Good.xlsm"]
[41,"BOGARD_F","http://www.creationismonline.com/YEC/Dating_Methods.xlsm"]
[42,"Jourdan","http://www.creationismonline.com/YEC/Dating_Methods.xlsm"]
[43,"Future_Ages_13","http://www.creationismonline.com/YEC/Future.xlsm"]
[44,"To_Old_01","http://www.creationismonline.com/YEC/Impossible.xlsm"]
[45,"To_Old_02","http://www.creationismonline.com/YEC/Impossible.xlsm"]
[46,"Ages_001","http://www.creationismonline.com/YEC/Dating_Methods.xlsm"]
[47,"Ages_017","http://www.creationismonline.com/YEC/Dating_Methods.xlsm"]
[48,"Birck","http://www.creationismonline.com/YEC/Dating_Methods.xlsm"]
[49,"Older_3","http://www.creationismonline.com/YEC/Dating_Methods.xlsm"]
[50,"Pearson","http://www.creationismonline.com/YEC/Dating_Methods.xlsm"]
[51,"Pellas","http://www.creationismonline.com/YEC/Dating_Methods.xlsm"]
[52,"Negative_20","http://www.creationismonline.com/YEC/Negative.xlsm"]
[53,"Excellent_18","http://www.creationismonline.com/YEC/Excellent.xlsm"]
[54,"Excellent_26","http://www.creationismonline.com/YEC/Excellent.xlsm"]
[55,"Excellent_36","http://www.creationismonline.com/YEC/Excellent.xlsm"]
[56,"Excellent_40","http://www.creationismonline.com/YEC/Excellent.xlsm"]
[57,"Very_Old_10","http://www.creationismonline.com/YEC/Good.xlsm"]
[58,"Very_Old_Z","http://www.creationismonline.com/YEC/Very_Old_Z.xls"]
[59,"232_Th_11","http://www.creationismonline.com/YEC/Th-Pb.xlsm"]
[60,"Excellent_03","http://www.creationismonline.com/YEC/Excellent.xlsm"]
[61,"Excellent_04","http://www.creationismonline.com/YEC/Excellent.xlsm"]
[62,"Excellent_11","http://www.creationismonline.com/YEC/Excellent.xlsm"]
[63,"Excellent_28","http://www.creationismonline.com/YEC/Excellent.xlsm"]
[64,"BOGARD_B","http://www.creationismonline.com/YEC/Dating_Methods.xlsm"]
[65,"Itaya","http://www.creationismonline.com/YEC/Dating_Methods.xlsm"]
[66,"Kyoungwon","http://www.creationismonline.com/YEC/Dating_Methods.xlsm"]
[67,"Older_4","http://www.creationismonline.com/YEC/Dating_Methods.xlsm"]
[68,"To_Old_03","http://www.creationismonline.com/YEC/Impossible.xlsm"]
[69,"To_Old_04","http://www.creationismonline.com/YEC/Impossible.xlsm"]
[70,"Excellent_46","http://www.creationismonline.com/YEC/Excellent.xlsm"]
[71,"Good_06","http://www.creationismonline.com/YEC/Good.xlsm"]
[72,"Very_Old_04","http://www.creationismonline.com/YEC/Good.xlsm"]
[73,"Iso_Plot_008","http://www.creationismonline.com/YEC/Plot_Index.xlsm"]
[74,"Very_Old_X","http://www.creationismonline.com/YEC/Very_Old_X.xls"]
[75,"Future_Ages_21","http://www.creationismonline.com/YEC/Future.xlsm"]
[76,"GOOD_G","http://www.creationismonline.com/YEC/GOOD.xlsm"]
[77,"To_Old_05","http://www.creationismonline.com/YEC/Impossible.xlsm"]
[78,"To_Old_06","http://www.creationismonline.com/YEC/Impossible.xlsm"]
[79,"Very_Old_08","http://www.creationismonline.com/YEC/Good.xlsm"]
[80,"Iso_Plot_003","http://www.creationismonline.com/YEC/Plot_Index.xlsm"]
[81,"Amelin_A","http://www.creationismonline.com/YEC/Dating_Methods.xlsm"]
[82,"Older_5","http://www.creationismonline.com/YEC/Dating_Methods.xlsm"]
[83,"Ranticelli","http://www.creationismonline.com/YEC/Dating_Methods.xlsm"]
[84,"Riley","http://www.creationismonline.com/YEC/Dating_Methods.xlsm"]
[85,"Older_05","http://www.creationismonline.com/YEC/Impossible.xlsm"]
[86,"Excellent_32","http://www.creationismonline.com/YEC/Excellent.xlsm"]
[87,"Excellent_43","http://www.creationismonline.com/YEC/Excellent.xlsm"]
[88,"Pb_207_08","http://www.creationismonline.com/YEC/Research.xlsm"]
[89,"Pb_207_10","http://www.creationismonline.com/YEC/Research.xlsm"]
[90,"Nd_Sm_02","http://www.creationismonline.com/YEC/Neodymium_Samarium.xlsm"]
[91,"Rb-Sr_14","http://www.creationismonline.com/YEC/Rubidium_Strontium_01.xlsm"]
[92,"Rb-Sr_12","http://www.creationismonline.com/YEC/Rubidium_Strontium_02.xlsm"]
[93,"Rb-Sr_17","http://www.creationismonline.com/YEC/Rubidium_Strontium_02.xlsm"]
[94,"Iso_Plot_011","http://www.creationismonline.com/YEC/Plot_Index.xlsm"]
[95,"Very_Old_A_5","http://www.creationismonline.com/YEC/Very_Old_A_5.xls"]
[96,"Amelin_F","http://www.creationismonline.com/YEC/Dating_Methods.xlsm"]
[97,"GOOD_P","http://www.creationismonline.com/YEC/GOOD.xlsm"]
[98,"Pb-206_24","http://www.creationismonline.com/YEC/Lead_206_207.xlsm"]
[99,"Rb-Sr_19","http://www.creationismonline.com/YEC/Rubidium_Strontium_01.xlsm"]
[100,"Rb-Sr_36","http://www.creationismonline.com/YEC/Rubidium_Strontium_01.xlsm"]
[101,"Good_11","http://www.creationismonline.com/YEC/Good.xlsm"]
[102,"Good_12","http://www.creationismonline.com/YEC/Good.xlsm"]
[103,"Diamonds_03","http://www.creationismonline.com/YEC/Good.xlsm"]
[104,"Iso_Plot_019","http://www.creationismonline.com/YEC/Plot_Index.xlsm"]
[105,"Very_Old_F","http://www.creationismonline.com/YEC/Very_Old_F.xls"]
[106,"Very_Old_L","http://www.creationismonline.com/YEC/Very_Old_L.xls"]
[107,"Ages_012","http://www.creationismonline.com/YEC/Dating_Methods.xlsm"]
[108,"Kaiser","http://www.creationismonline.com/YEC/Dating_Methods.xlsm"]
[109,"Mc-Convill","http://www.creationismonline.com/YEC/Dating_Methods.xlsm"]
[110,"Future_Ages_02","http://www.creationismonline.com/YEC/Future.xlsm"]
[111,"Future_Ages_09","http://www.creationismonline.com/YEC/Future.xlsm"]
[112,"GOOD_Q","http://www.creationismonline.com/YEC/GOOD.xlsm"]
[113,"Greater_05","http://www.creationismonline.com/YEC/Impossible.xlsm"]
[114,"232_Th_08","http://www.creationismonline.com/YEC/Th-Pb.xlsm"]
[115,"Rb-Sr_09","http://www.creationismonline.com/YEC/Rubidium_Strontium_01.xlsm"]
[116,"Rb-Sr_12","http://www.creationismonline.com/YEC/Rubidium_Strontium_01.xlsm"]
[117,"Good_02","http://www.creationismonline.com/YEC/Good.xlsm"]
[118,"Very_Old_12","http://www.creationismonline.com/YEC/Good.xlsm"]
[119,"Very_Old_K","http://www.creationismonline.com/YEC/Very_Old_K.xls"]
[120,"Very_Old_Q","http://www.creationismonline.com/YEC/Very_Old_Q.xls"]
[121,"Very_Old_A_8","http://www.creationismonline.com/YEC/Very_Old_A_8.xls"]
[122,"Negative_06","http://www.creationismonline.com/YEC/Negative.xlsm"]
[123,"Negative_08","http://www.creationismonline.com/YEC/Negative.xlsm"]
[124,"Excellent_02","http://www.creationismonline.com/YEC/Excellent.xlsm"]
[125,"Excellent_15","http://www.creationismonline.com/YEC/Excellent.xlsm"]
[126,"GOOD_H","http://www.creationismonline.com/YEC/GOOD.xlsm"]
[127,"Excellent_09","http://www.creationismonline.com/YEC/Excellent.xlsm"]
[128,"Nd_Sm_03","http://www.creationismonline.com/YEC/Neodymium_Samarium.xlsm"]
[129,"Rb-Sr_15","http://www.creationismonline.com/YEC/Rubidium_Strontium_01.xlsm"]
[130,"Rb-Sr_30","http://www.creationismonline.com/YEC/Rubidium_Strontium_01.xlsm"]
[131,"Rb-Sr_40","http://www.creationismonline.com/YEC/Rubidium_Strontium_01.xlsm"]
[132,"Amelin_D","http://www.creationismonline.com/YEC/Dating_Methods.xlsm"]
[133,"BOGARD_E","http://www.creationismonline.com/YEC/Dating_Methods.xlsm"]
[134,"GOOD_A","http://www.creationismonline.com/YEC/GOOD.xlsm"]
[135,"Negative_03","http://www.creationismonline.com/YEC/Negative.xlsm"]
[136,"Excellent_42","http://www.creationismonline.com/YEC/Excellent.xlsm"]
[137,"Pb-206_06","http://www.creationismonline.com/YEC/Lead_206_207.xlsm"]
[138,"Rb-Sr_29","http://www.creationismonline.com/YEC/Rubidium_Strontium_01.xlsm"]
[139,"Rb-Sr_01","http://www.creationismonline.com/YEC/Rubidium_Strontium_02.xlsm"]
[140,"Rb-Sr_13","http://www.creationismonline.com/YEC/Rubidium_Strontium_02.xlsm"]
[141,"Very_Old_09","http://www.creationismonline.com/YEC/Good.xlsm"]
[142,"Very_Old_A_4","http://www.creationismonline.com/YEC/Very_Old_A_4.xls"]
[143,"Kunz ","http://www.creationismonline.com/YEC/Dating_Methods.xlsm"]
[144,"Older_01","http://www.creationismonline.com/YEC/Impossible.xlsm"]
[145,"Excellent_37","http://www.creationismonline.com/YEC/Excellent.xlsm"]
[146,"Nd_Sm_05","http://www.creationismonline.com/YEC/Neodymium_Samarium.xlsm"]
[147,"Nd_Sm_15","http://www.creationismonline.com/YEC/Neodymium_Samarium.xlsm"]
[148,"Rb-Sr_20","http://www.creationismonline.com/YEC/Rubidium_Strontium_01.xlsm"]
[149,"Rb-Sr_48","http://www.creationismonline.com/YEC/Rubidium_Strontium_01.xlsm"]
[150,"Iso_Plot_016","http://www.creationismonline.com/YEC/Plot_Index.xlsm"]
[151,"BOGARD_A","http://www.creationismonline.com/YEC/Dating_Methods.xlsm"]
[152,"Excellent_01","http://www.creationismonline.com/YEC/Excellent.xlsm"]
[153,"Excellent_06","http://www.creationismonline.com/YEC/Excellent.xlsm"]
[154,"Excellent_13","http://www.creationismonline.com/YEC/Excellent.xlsm"]
[155,"Excellent_41","http://www.creationismonline.com/YEC/Excellent.xlsm"]
[156,"Rb-Sr_02","http://www.creationismonline.com/YEC/Rubidium_Strontium_02.xlsm"]
[157,"Iso_Plot_002","http://www.creationismonline.com/YEC/Plot_Index.xlsm"]
[158,"Very_Old_N","http://www.creationismonline.com/YEC/Very_Old_N.xls"]
[159,"232_Th_10","http://www.creationismonline.com/YEC/Th-Pb.xlsm"]
[160,"Pb_207_03","http://www.creationismonline.com/YEC/Research.xlsm"]
[161,"Rb-Sr_10","http://www.creationismonline.com/YEC/Rubidium_Strontium_02.xlsm"]
[162,"Very_Old_U","http://www.creationismonline.com/YEC/Very_Old_U.xls"]
[163,"Amelin_C","http://www.creationismonline.com/YEC/Dating_Methods.xlsm"]
[164,"Stoenner","http://www.creationismonline.com/YEC/Dating_Methods.xlsm"]
[165,"U_238_01","http://www.creationismonline.com/YEC/Research.xlsm"]
[166,"Rb-Sr_05","http://www.creationismonline.com/YEC/Rubidium_Strontium_02.xlsm"]
[167,"Very_Old_W","http://www.creationismonline.com/YEC/Very_Old_W.xls"]
[168,"Very_Old_A_1","http://www.creationismonline.com/YEC/Very_Old_A_1.xls"]
[169,"Older_04","http://www.creationismonline.com/YEC/Impossible.xlsm"]
[170,"Excellent_24","http://www.creationismonline.com/YEC/Excellent.xlsm"]
[171,"Excellent_33","http://www.creationismonline.com/YEC/Excellent.xlsm"]
[172,"Pb-206_17","http://www.creationismonline.com/YEC/Lead_206_207.xlsm"]
[173,"Rb-Sr_06","http://www.creationismonline.com/YEC/Rubidium_Strontium_02.xlsm"]
[174,"Rb-Sr_07","http://www.creationismonline.com/YEC/Rubidium_Strontium_02.xlsm"]
[175,"Rb-Sr_08","http://www.creationismonline.com/YEC/Rubidium_Strontium_02.xlsm"]
[176,"Very_Old_03","http://www.creationismonline.com/YEC/Good.xlsm"]
[177,"Iso_Plot_010","http://www.creationismonline.com/YEC/Plot_Index.xlsm"]
[178,"Future_Ages_01","http://www.creationismonline.com/YEC/Future.xlsm"]
[179,"Excellent_16","http://www.creationismonline.com/YEC/Excellent.xlsm"]
[180,"Excellent_27","http://www.creationismonline.com/YEC/Excellent.xlsm"]
[181,"Pb-206_16","http://www.creationismonline.com/YEC/Lead_206_207.xlsm"]
[182,"Nd_Sm_14","http://www.creationismonline.com/YEC/Neodymium_Samarium.xlsm"]
[183,"Thorium_B","http://www.creationismonline.com/YEC/Th-Pb.xlsm"]
[184,"Nd_Sm_12","http://www.creationismonline.com/YEC/Neodymium_Samarium.xlsm"]
[185,"Rb-Sr_42","http://www.creationismonline.com/YEC/Rubidium_Strontium_01.xlsm"]
[186,"Rb-Sr_16","http://www.creationismonline.com/YEC/Rubidium_Strontium_02.xlsm"]
[187,"Very_Old_02","http://www.creationismonline.com/YEC/Good.xlsm"]
[188,"Future_Ages_05","http://www.creationismonline.com/YEC/Future.xlsm"]
[189,"Negative_19","http://www.creationismonline.com/YEC/Negative.xlsm"]
[190,"Excellent_29","http://www.creationismonline.com/YEC/Excellent.xlsm"]
[191,"Pb-206_13","http://www.creationismonline.com/YEC/Lead_206_207.xlsm"]
[192,"Very_Old_16","http://www.creationismonline.com/YEC/Good.xlsm"]
[193,"Older_1","http://www.creationismonline.com/YEC/Dating_Methods.xlsm"]
[194,"Excellent_17","http://www.creationismonline.com/YEC/Excellent.xlsm"]
[195,"Excellent_30","http://www.creationismonline.com/YEC/Excellent.xlsm"]
[196,"Pb-206_22","http://www.creationismonline.com/YEC/Lead_206_207.xlsm"]
[197,"Rb-Sr_33","http://www.creationismonline.com/YEC/Rubidium_Strontium_01.xlsm"]
[198,"Very_Old_01","http://www.creationismonline.com/YEC/Good.xlsm"]
[199,"Tilton","http://www.creationismonline.com/YEC/Dating_Methods.xlsm"]
[200,"Excellent_04","http://www.creationismonline.com/YEC/Excellent.xlsm"]
[201,"Rb-Sr_46","http://www.creationismonline.com/YEC/Rubidium_Strontium_01.xlsm"]
[202,"Iso_Plot_007","http://www.creationismonline.com/YEC/Plot_Index.xlsm"]
[203,"232_Th_05","http://www.creationismonline.com/YEC/Th-Pb.xlsm"]
[204,"Iso_Plot_020","http://www.creationismonline.com/YEC/Plot_Index.xlsm"]
[205,"Burnett","http://www.creationismonline.com/YEC/Dating_Methods.xlsm"]
[206,"Excellent_34","http://www.creationismonline.com/YEC/Excellent.xlsm"]
[207,"Excellent_35","http://www.creationismonline.com/YEC/Excellent.xlsm"]
[208,"Excellent_44","http://www.creationismonline.com/YEC/Excellent.xlsm"]
[209,"Rb-Sr_03","http://www.creationismonline.com/YEC/Rubidium_Strontium_01.xlsm"]
[210,"Iso_Plot_012","http://www.creationismonline.com/YEC/Plot_Index.xlsm"]
[211,"GOOD_F","http://www.creationismonline.com/YEC/GOOD.xlsm"]
[212,"Very_Old_B","http://www.creationismonline.com/YEC/Very_Old_B.xls"]
[213,"Older_9","http://www.creationismonline.com/YEC/Dating_Methods.xlsm"]
[214,"232_Th_09","http://www.creationismonline.com/YEC/Th-Pb.xlsm"]
[215,"Pb-206_08","http://www.creationismonline.com/YEC/Lead_206_207.xlsm"]
[216,"Pb-206_15","http://www.creationismonline.com/YEC/Lead_206_207.xlsm"]
[217,"Nd_Sm_17","http://www.creationismonline.com/YEC/Neodymium_Samarium.xlsm"]
[218,"Rb-Sr_28","http://www.creationismonline.com/YEC/Rubidium_Strontium_01.xlsm"]
[219,"Very_Old_S","http://www.creationismonline.com/YEC/Very_Old_S.xls"]
[220,"Good_08","http://www.creationismonline.com/YEC/Good.xlsm"]
[221,"Very_Old_T","http://www.creationismonline.com/YEC/Very_Old_T.xls"]
[222,"232_Th_07","http://www.creationismonline.com/YEC/Th-Pb.xlsm"]
[223,"Pb-206_02","http://www.creationismonline.com/YEC/Lead_206_207.xlsm"]
[224,"Pb_207_15","http://www.creationismonline.com/YEC/Research.xlsm"]
[225,"Rb-Sr_11","http://www.creationismonline.com/YEC/Rubidium_Strontium_02.xlsm"]
[226,"Pb-206_14","http://www.creationismonline.com/YEC/Lead_206_207.xlsm"]
[227,"Very_Old_P","http://www.creationismonline.com/YEC/Very_Old_P.xls"]
[228,"Excellent_08","http://www.creationismonline.com/YEC/Excellent.xlsm"]
[229,"Rb-Sr_34","http://www.creationismonline.com/YEC/Rubidium_Strontium_01.xlsm"]
[230,"Excellent_25","http://www.creationismonline.com/YEC/Excellent.xlsm"]
[231,"Rb-Sr_09","http://www.creationismonline.com/YEC/Rubidium_Strontium_02.xlsm"]
[232,"Iso_Plot_017","http://www.creationismonline.com/YEC/Plot_Index.xlsm"]
[233,"BOGARD_C","http://www.creationismonline.com/YEC/Dating_Methods.xlsm"]
[234,"Greater_02","http://www.creationismonline.com/YEC/Impossible.xlsm"]
[235,"Th_232_01","http://www.creationismonline.com/YEC/Research.xlsm"]
[236,"Rb-Sr_17","http://www.creationismonline.com/YEC/Rubidium_Strontium_01.xlsm"]
[237,"Pb_207_05","http://www.creationismonline.com/YEC/Research.xlsm"]
[238,"Pb_207_12","http://www.creationismonline.com/YEC/Research.xlsm"]
[239,"Rb-Sr_02","http://www.creationismonline.com/YEC/Rubidium_Strontium_01.xlsm"]
[240,"Rb-Sr_50","http://www.creationismonline.com/YEC/Rubidium_Strontium_01.xlsm"]
[241,"Pb_207_01","http://www.creationismonline.com/YEC/Research.xlsm"]
[242,"Pb_207_02","http://www.creationismonline.com/YEC/Research.xlsm"]
[243,"Iso_Plot_001","http://www.creationismonline.com/YEC/Plot_Index.xlsm"]
[244,"Hall","http://www.creationismonline.com/YEC/Dating_Methods.xlsm"]
[245,"Rb-Sr_39","http://www.creationismonline.com/YEC/Rubidium_Strontium_01.xlsm"]
[246,"Iso_Plot_013","http://www.creationismonline.com/YEC/Plot_Index.xlsm"]
[247,"GOOD_N","http://www.creationismonline.com/YEC/GOOD.xlsm"]
[248,"Excellent_12","http://www.creationismonline.com/YEC/Excellent.xlsm"]
[249,"Pb_207_11","http://www.creationismonline.com/YEC/Research.xlsm"]
[250,"Rb-Sr_03","http://www.creationismonline.com/YEC/Rubidium_Strontium_02.xlsm"]
[251,"Iso_Plot_014","http://www.creationismonline.com/YEC/Plot_Index.xlsm"]
[252,"Excellent_10","http://www.creationismonline.com/YEC/Excellent.xlsm"]
[253,"Pb_207_14","http://www.creationismonline.com/YEC/Research.xlsm"]
[254,"Excellent_21","http://www.creationismonline.com/YEC/Excellent.xlsm"]
[255,"Rb-Sr_45","http://www.creationismonline.com/YEC/Rubidium_Strontium_01.xlsm"]
[256,"Iso_Plot_006","http://www.creationismonline.com/YEC/Plot_Index.xlsm"]
[257,"Very_Old_V","http://www.creationismonline.com/YEC/Very_Old_V.xls"]
[258,"Rb-Sr_04","http://www.creationismonline.com/YEC/Rubidium_Strontium_02.xlsm"]
[259,"Iso_Plot_018","http://www.creationismonline.com/YEC/Plot_Index.xlsm"]
[260,"Very_Old_B_9","http://www.creationismonline.com/YEC/Very_Old_B_9.xlsx"]
[261,"Pb_207_16","http://www.creationismonline.com/YEC/Research.xlsm"]
[262,"Th_232_03","http://www.creationismonline.com/YEC/Research.xlsm"]
[263,"Rb-Sr_25","http://www.creationismonline.com/YEC/Rubidium_Strontium_01.xlsm"]
[264,"Korochantseva","http://www.creationismonline.com/YEC/Dating_Methods.xlsm"]
[265,"Excellent_19","http://www.creationismonline.com/YEC/Excellent.xlsm"]
[266,"Excellent_39","http://www.creationismonline.com/YEC/Excellent.xlsm"]
[267,"Good_03","http://www.creationismonline.com/YEC/Good.xlsm"]
[268,"Very_Old_M","http://www.creationismonline.com/YEC/Very_Old_M.xls"]
[269,"GOOD_M","http://www.creationismonline.com/YEC/GOOD.xlsm"]
[270,"232_Th_02","http://www.creationismonline.com/YEC/Th-Pb.xlsm"]
[271,"Thorium_C","http://www.creationismonline.com/YEC/Th-Pb.xlsm"]
[272,"GOOD_S","http://www.creationismonline.com/YEC/GOOD.xlsm"]
[273,"232_Th_04","http://www.creationismonline.com/YEC/Th-Pb.xlsm"]
[274,"Nd_Sm_13","http://www.creationismonline.com/YEC/Neodymium_Samarium.xlsm"]
[275,"Rb-Sr_49","http://www.creationismonline.com/YEC/Rubidium_Strontium_01.xlsm"]
[276,"Excellent_14","http://www.creationismonline.com/YEC/Excellent.xlsm"]
[277,"Very_Old_A_9","http://www.creationismonline.com/YEC/Very_Old_A_9.xls"]
[278,"Nd_Sm_10","http://www.creationismonline.com/YEC/Neodymium_Samarium.xlsm"]
[279,"Rb-Sr_27","http://www.creationismonline.com/YEC/Rubidium_Strontium_01.xlsm"]
[280,"Rb-Sr_18","http://www.creationismonline.com/YEC/Rubidium_Strontium_02.xlsm"]
[281,"Tatsumoto","http://www.creationismonline.com/YEC/Dating_Methods.xlsm"]
[282,"GOOD_L","http://www.creationismonline.com/YEC/GOOD.xlsm"]
[283,"Pb_207_13","http://www.creationismonline.com/YEC/Research.xlsm"]
[284,"Thorium_E","http://www.creationismonline.com/YEC/Th-Pb.xlsm"]
[285,"Nd_Sm_07","http://www.creationismonline.com/YEC/Neodymium_Samarium.xlsm"]
[286,"Rb-Sr_22","http://www.creationismonline.com/YEC/Rubidium_Strontium_01.xlsm"]
[287,"Excellent_47","http://www.creationismonline.com/YEC/Excellent.xlsm"]
[288,"Pb-206_23","http://www.creationismonline.com/YEC/Lead_206_207.xlsm"]
[289,"GOOD_R","http://www.creationismonline.com/YEC/GOOD.xlsm"]
[290,"Good_01","http://www.creationismonline.com/YEC/Good.xlsm"]
[291,"Nd_Sm_09","http://www.creationismonline.com/YEC/Neodymium_Samarium.xlsm"]
[292,"Rb-Sr_26","http://www.creationismonline.com/YEC/Rubidium_Strontium_01.xlsm"]
[293,"Pb-206_05","http://www.creationismonline.com/YEC/Lead_206_207.xlsm"]
[294,"Very_Old_D","http://www.creationismonline.com/YEC/Very_Old_D.xls"]
[295,"Nd_Sm_19","http://www.creationismonline.com/YEC/Neodymium_Samarium.xlsm"]
[296,"GOOD_D","http://www.creationismonline.com/YEC/GOOD.xlsm"]
[297,"Excellent_22","http://www.creationismonline.com/YEC/Excellent.xlsm"]
[298,"Pb-206_09","http://www.creationismonline.com/YEC/Lead_206_207.xlsm"]
[299,"Rb-Sr_14","http://www.creationismonline.com/YEC/Rubidium_Strontium_02.xlsm"]
[300,"Excellent_31","http://www.creationismonline.com/YEC/Excellent.xlsm"]
[301,"U_238_03","http://www.creationismonline.com/YEC/Research.xlsm"]
[302,"Wasserburg","http://www.creationismonline.com/YEC/Dating_Methods.xlsm"]
[303,"Nd_Sm_01","http://www.creationismonline.com/YEC/Neodymium_Samarium.xlsm"]
[304,"Rb-Sr_07","http://www.creationismonline.com/YEC/Rubidium_Strontium_01.xlsm"]
[305,"GOOD_B","http://www.creationismonline.com/YEC/GOOD.xlsm"]
[306,"Very_Old_A_7","http://www.creationismonline.com/YEC/Very_Old_A_7.xls"]
[307,"Nd_Sm_18","http://www.creationismonline.com/YEC/Neodymium_Samarium.xlsm"]
[308,"Iso_Plot_015","http://www.creationismonline.com/YEC/Plot_Index.xlsm"]
[309,"Pb-206_18","http://www.creationismonline.com/YEC/Lead_206_207.xlsm"]
[310,"Rb-Sr_44","http://www.creationismonline.com/YEC/Rubidium_Strontium_01.xlsm"]
[311,"Rb-Sr_35","http://www.creationismonline.com/YEC/Rubidium_Strontium_01.xlsm"]
[312,"Very_Old_A_3","http://www.creationismonline.com/YEC/Very_Old_A_3.xls"]
[313,"Very_Old_B_3","http://www.creationismonline.com/YEC/Very_Old_B_3.xls"]
[314,"Iso_Plot_005","http://www.creationismonline.com/YEC/Plot_Index.xlsm"]
[315,"Pb_207_06","http://www.creationismonline.com/YEC/Research.xlsm"]
[316,"Very_Old_15","http://www.creationismonline.com/YEC/Good.xlsm"]
[317,"Excellent_38","http://www.creationismonline.com/YEC/Excellent.xlsm"]
[318,"Pb_207_04","http://www.creationismonline.com/YEC/Research.xlsm"]
[319,"Maluski","http://www.creationismonline.com/YEC/Dating_Methods.xlsm"]
[320,"Nd_Sm_08","http://www.creationismonline.com/YEC/Neodymium_Samarium.xlsm"]
[321,"Rb-Sr_23","http://www.creationismonline.com/YEC/Rubidium_Strontium_01.xlsm"]
[322,"Very_Old_H","http://www.creationismonline.com/YEC/Very_Old_H.xls"]
[323,"Pb-206_25","http://www.creationismonline.com/YEC/Lead_206_207.xlsm"]
[324,"232_Th_06","http://www.creationismonline.com/YEC/Th-Pb.xlsm"]
[325,"Thorium_A","http://www.creationismonline.com/YEC/Th-Pb.xlsm"]
[326,"Iso_Plot_004","http://www.creationismonline.com/YEC/Plot_Index.xlsm"]
[327,"Very_Old_C_4","http://www.creationismonline.com/YEC/Very_Old_C_4.xls"]
[328,"Very_Old_A_2","http://www.creationismonline.com/YEC/Very_Old_A_2.xls"]
[329,"Thorium_D","http://www.creationismonline.com/YEC/Th-Pb.xlsm"]
[330,"Excellent_23","http://www.creationismonline.com/YEC/Excellent.xlsm"]
[331,"Very_Old_E","http://www.creationismonline.com/YEC/Very_Old_E.xls"]
[332,"Very_Old_B","http://www.creationismonline.com/YEC/Very_Old_C.xls"]
[333,"Rb-Sr_47","http://www.creationismonline.com/YEC/Rubidium_Strontium_01.xlsm"]
[334,"Iso_Plot_009","http://www.creationismonline.com/YEC/Plot_Index.xlsm"]
[335,"Very_Old_C_3","http://www.creationismonline.com/YEC/Very_Old_C_3.xls"]
[336,"Very_Old_C_2","http://www.creationismonline.com/YEC/Very_Old_C_2.xls"]
[337,"Rb-Sr_05","http://www.creationismonline.com/YEC/Rubidium_Strontium_01.xlsm"]
[338,"Very_Old_C_1","http://www.creationismonline.com/YEC/Very_Old_C_1.xls"]
[339,"Very_Old_J","http://www.creationismonline.com/YEC/Very_Old_J.xls"]
[340,"Very_Old_A","http://www.creationismonline.com/YEC/Very_Old_A.xls"]
[341,"Very_Old_A_6","http://www.creationismonline.com/YEC/Very_Old_A_6.xls"]
[342,"Very_Old_B_5","http://www.creationismonline.com/YEC/Very_Old_B_5.xls"]
[343,"Very_Old_B_2","http://www.creationismonline.com/YEC/Very_Old_B_2.xls"]
[344,"Very_Old_B_8","http://www.creationismonline.com/YEC/Very_Old_B_8.xlsx"]
[345,"Very_Old_R","http://www.creationismonline.com/YEC/Very_Old_R.xls"]
[346,"Very_Old_Y","http://www.creationismonline.com/YEC/Very_Old_Y.xls"]
[347,"Very_Old_B_7","http://www.creationismonline.com/YEC/Very_Old_B_7.xls"]

{"sheet":"PlotDat2","index":1,"n_rows":81,"n_cols":8,"rows_kept":81,"cut":false,"hidden":true,"merged":[]}
["Source sheet","Plot_08",1.9486000000000001,1.4E-3,0.25129304251593926,0,0.33610000000000001,2.9999999999999997E-4]
["Plot name","PbPlot2",2.2284999999999999,1.9E-3,4.5,6.0183650369106025E-3,0.38109999999999999,3.6361345022489989E-4]
["Plot Type",9,3.54,2.7000000000000001E-3,null,null,0.42609999999999998,4.405298128400012E-4]
["1st free col",9,3.5996999999999999,4.1000000000000003E-3,null,null,0.47109999999999996,5.2586043515878288E-4]
["Sigma Level",1,2.8624000000000001,8.5000000000000006E-3,null,null,0.5161,6.1471666449472396E-4]
["Absolute Errs",true,0.33610000000000001,2.9999999999999997E-4,null,null,0.56110000000000004,7.0220984816130331E-4]
["Symbol Type",12,1.2217,8.9999999999999998E-4,null,null,0.60610000000000008,7.8345133347199969E-4]
["Inverse Plot",true,"IsoLine","IsoLine",null,null,0.65110000000000012,8.5355246774029218E-4]
["Color Plot",true,null,null,null,null,0.69610000000000016,9.0762459827965975E-4]
["3D plot",false,null,null,null,null,0.7411000000000002,9.4077907240358116E-4]
["Linear",false,null,null,null,null,0.78610000000000024,9.4812723742553539E-4]
["Data Range","K3:L9",null,null,null,null,0.83110000000000028,9.2478044065900131E-4]
["Filled Symbols",true,null,null,null,null,0.87610000000000032,8.6585002941745809E-4]
["ConcAge",false,null,null,null,null,0.92110000000000036,7.6644735101438408E-4]
["ConcSwap",false,null,null,null,null,0.9661000000000004,6.2168375276325921E-4]
["1st Symbol-row",1,null,null,null,null,1.0111000000000003,4.2667058197756204E-4]
[null,null,null,null,null,null,1.0561000000000003,1.7651918597077151E-4]
[null,null,null,null,null,null,1.1011000000000002,-1.3365908794363342E-4]
[null,null,null,null,null,null,1.1461000000000001,-5.087528924521738E-4]
[null,null,null,null,null,null,1.1911,-9.5365088024137058E-4]
[null,null,null,null,null,null,1.2217,8.9999999999999998E-4]
[null,null,null,null,null,null,1.2666999999999999,9.6947336796372513E-4]
[null,null,null,null,null,null,1.3116999999999999,1.0304645993032746E-3]
[null,null,null,null,null,null,1.3566999999999998,1.0835810930299242E-3]
[null,null,null,null,null,null,1.4016999999999997,1.1294302481549504E-3]
[null,null,null,null,null,null,1.4466999999999997,1.1686194636896295E-3]
[null,null,null,null,null,null,1.4916999999999996,1.2017561386452374E-3]
[null,null,null,null,null,null,1.5366999999999995,1.2294476720330508E-3]
[null,null,null,null,null,null,1.5816999999999994,1.2523014628643455E-3]
[null,null,null,null,null,null,1.6266999999999994,1.2709249101503979E-3]
[null,null,null,null,null,null,1.6716999999999993,1.285925412902484E-3]
[null,null,null,null,null,null,1.7166999999999992,1.2979103701318802E-3]
[null,null,null,null,null,null,1.7616999999999992,1.3074871808498628E-3]
[null,null,null,null,null,null,1.8066999999999991,1.315263244067708E-3]
[null,null,null,null,null,null,1.851699999999999,1.3218459587966917E-3]
[null,null,null,null,null,null,1.8966999999999989,1.3278427240480904E-3]
[null,null,null,null,null,null,1.9416999999999989,1.3338609388331803E-3]
[null,null,null,null,null,null,1.9486000000000001,1.4E-3]
[null,null,null,null,null,null,1.9936,2.5704346320412946E-3]
[null,null,null,null,null,null,2.0386000000000002,1.5578786438601373E-3]
[null,null,null,null,null,null,2.0836000000000001,-8.2225496392492516E-3]
[null,null,null,null,null,null,2.1286,-3.3355731891992632E-2]
[null,null,null,null,null,null,2.1736,-8.0426549789075763E-2]
[null,null,null,null,null,null,2.2185999999999999,-0.15601988500520442]
[null,null,null,null,null,null,2.2284999999999999,1.9E-3]
[null,null,null,null,null,null,2.2734999999999999,2.0845290441243317E-3]
[null,null,null,null,null,null,2.3184999999999998,2.425529187586482E-3]
[null,null,null,null,null,null,2.3634999999999997,2.9400278822807623E-3]
[null,null,null,null,null,null,2.4084999999999996,3.6450525801014831E-3]
[null,null,null,null,null,null,2.4534999999999996,4.5576307329429555E-3]
[null,null,null,null,null,null,2.4984999999999995,5.6947897926994907E-3]
[null,null,null,null,null,null,2.5434999999999994,7.0735572112654004E-3]
[null,null,null,null,null,null,2.5884999999999994,8.7109604405349941E-3]
[null,null,null,null,null,null,2.6334999999999993,1.0624026932402586E-2]
[null,null,null,null,null,null,2.6784999999999992,1.2829784138762483E-2]
[null,null,null,null,null,null,2.7234999999999991,1.5345259511508998E-2]
[null,null,null,null,null,null,2.7684999999999991,1.8187480502536445E-2]
[null,null,null,null,null,null,2.813499999999999,2.1373474563739132E-2]
[null,null,null,null,null,null,2.8584999999999989,2.4920269147011367E-2]
[null,null,null,null,null,null,2.8624000000000001,8.5000000000000006E-3]
[null,null,null,null,null,null,2.9074,8.6100087028005545E-3]
[null,null,null,null,null,null,2.9523999999999999,8.7143378150009391E-3]
[null,null,null,null,null,null,2.9973999999999998,8.8127593896121011E-3]
[null,null,null,null,null,null,3.0423999999999998,8.905045479644982E-3]
[null,null,null,null,null,null,3.0873999999999997,8.990968138110525E-3]
[null,null,null,null,null,null,3.1323999999999996,9.0702994180196748E-3]
[null,null,null,null,null,null,3.1773999999999996,9.1428113723833748E-3]
[null,null,null,null,null,null,3.2223999999999995,9.2082760542125663E-3]
[null,null,null,null,null,null,3.2673999999999994,9.2664655165181943E-3]
[null,null,null,null,null,null,3.3123999999999993,9.3171518123112019E-3]
[null,null,null,null,null,null,3.3573999999999993,9.3601069946025323E-3]
[null,null,null,null,null,null,3.4023999999999992,9.3951031164031303E-3]
[null,null,null,null,null,null,3.4473999999999991,9.4219122307239358E-3]
[null,null,null,null,null,null,3.4923999999999991,9.4403063905758953E-3]
[null,null,null,null,null,null,3.537399999999999,9.4500576489699502E-3]
[null,null,null,null,null,null,3.54,2.7000000000000001E-3]
[null,null,null,null,null,null,3.5549249999999999,2.7193115363555883E-3]
[null,null,null,null,null,null,3.5698499999999997,2.7377203114238033E-3]
[null,null,null,null,null,null,3.5847749999999996,2.7552570573351133E-3]
[null,null,null,null,null,null,3.5996999999999995,2.7719525062199872E-3]
[null,null,null,null,null,null,"IsoLine","IsoLine"]